Workbook

Sheet Chart
A1: Javanese Lunar Calendar (Windu) Jitter Relative to Mean Month
A3: ="Each lunar year (tahun) has 12 months. Lunar cycle contains "&MPC&" months ("&FMPC&" full, "&DMPC&" deficient)" -> Each lunar year (tahun) has 12 months. Lunar cycle contains 1440 months (764 full, 676 deficient)
A4: ="= "&DPC&" days = "&reducefraction(DPC,7,FALSE,FALSE,TRUE)&" weeks = "&MPC/12&" tahun = "&MPC/96&" windu."&IF(Reverse," After a common year odd-numbered",) -> = 42524 days = 6074+6/7 weeks = 120 tahun = 15 windu.
A5: =IF(Reverse,,"Odd-numbered ")&"months have 30 days, even-numbered months have 29 days."&IF(Reverse," After a leap year odd-numbered months have 29 days, even-numbered",) -> Odd-numbered months have 30 days, even-numbered months have 29 days.
A6: =IF(Reverse,"months have 30 days. ",)&"Year y is a leap year if and only if (3y + "&Offset&") MOD 8 < 3, in which case the 12th month has 30 days." -> Year y is a leap year if and only if (3y + 0) MOD 8 < 3, in which case the 12th month has 30 days.
A7: ="Leap years in each cycle are: "&javanese_leap_years(Offset)&". Common years = FDFDFDFDFDFD"&IF(Reverse," or DFDFDFDFDFDF",)&" = 354 days." -> Leap years in each cycle are: 3, 6, 8. Common years = FDFDFDFDFDFD = 354 days.
A8: ="Leap years = FDFDFDFDFDFF = 355 days." -> Leap years = FDFDFDFDFDFF = 355 days. | G8: In this variant the 120th year of cycle is a common year.
A9: ="Mean month = "&"29+"&reducefraction(FMPC,MPC,FALSE,FALSE,TRUE)&" days = 29d 12h 44m "&reducefraction(240*(360*FMPC-191*MPC),MPC,FALSE,FALSE,TRUE)&" seconds, or about 29"&MID(FMPC/MPC,2,20)&" days or 29d 12h 44m "&ROUND(240*(360*FMPC-191*MPC)/MPC,6)&" seconds." -> Mean month = 29+191/360 days = 29d 12h 44m 0 seconds, or about 29.530555555555556 days or 29d 12h 44m 0 seconds.
A10: ="Duration per ''Part'' = 1/"&MPC&" day = "&reducefraction(24,MPC,FALSE,FALSE,TRUE)&" hour = "&reducefraction(1440,MPC,FALSE,FALSE,TRUE)&" minutes = "&reducefraction(86400,MPC,FALSE,FALSE,TRUE)&" seconds. One hour = "&reducefraction(MPC,24,FALSE,FALSE,TRUE)&" parts." -> Duration per ''Part'' = 1/1440 day = 1/60 hour = 1 minutes = 60 seconds. One hour = 60 parts.
Q12: FALSE
Q21: 9
Q22: Selected
Q23: Month
Q24: in Year
Q25: (1 to 12)
Q32: 6
Q33: Selected
Q34: Month 2
Q35: in Year
Q36: (1 to 12)
Q44: 0
Q45: Leap
Q46: Rule
Q47: Offset
Q48: (0 to 7)

Sheet Data
A1: Lunar Cycle Jitter Evaluator
A2: by Dr. Irv Bromberg, University of Toronto, Canada
A3: http://individual.utoronto.ca/intervalmath/jitter/index.html | D3: Jitter | E3: (parts)
D4: =MAX(H:H) -> 1640 | E4: maximum | F4: =reducefraction(JitterMax*MPC,MPC,FALSE,FALSE,FALSE) -> 1640
A5: Months per Cycle (Parts per Day): | B5: =12*8*15 -> 1440 | C5: months (parts) | D5: =MIN(H:H) -> -2020 | E5: minimum | F5: =reducefraction(JitterMin*MPC,MPC,FALSE,FALSE,FALSE) -> –(2020)
A6: 30-day Months per Cycle: | B6: =(6*8+3)*15-1 -> 764 | C6: months | D6: =D4-D5 -> 3660 | E6: range | F6: =reducefraction(JitterRange*MPC,MPC,FALSE,FALSE,FALSE) -> 3660
A7: 29-day Months per Cycle: | B7: =MPC-FMPC -> 676 | C7: months | D7: ="Jitter range = "&F6&" parts = "&reducefraction(F6*24,MPC,FALSE,FALSE,FALSE)&" hours" -> Jitter range = 3660 parts = 61 hours
A8: Days per Cycle (Parts per Month): | B8: =29*MPC+FMPC -> 42524 | C8: days (parts)
A9: Yerms per Cycle: | B9: =2*DPC-59*MPC -> 88 | C9: yerms | D9: Limits for Chart:
A10: Mean Month: | B10: ="29 + "&reducefraction(FMPC,MPC,FALSE,FALSE,FALSE) -> 29 + 191 / 360 | C10: days | D10: x | E10: y | F10: Hours
A11: Mean Month >29d: | B11: =FMPC/MPC -> 0.530555555555556 | C11: days | D11: =B23 -> 1 | E11: =JitterMax -> 1640 | F11: =E11*24/MPC -> 27.33333333
A12: Mean Month >29d 12h 44m: | B12: =reducefraction(240*(360*FMPC-191*MPC),MPC,FALSE,FALSE,TRUE) -> 0 | C12: seconds | D12: =2*MPC+1 -> 2881 | E12: =E11 -> 1640 | F12: =E12*24/MPC -> 27.33333333
A13: … or approximately: | B13: =240*(360*FMPC-191*MPC)/MPC -> 0 | C13: seconds
D14: =D11 -> 1 | E14: 0
D15: =D12 -> 2881 | E15: 0
D17: =B23 -> 1 | E17: =JitterMin -> -2020 | F17: =E17*24/MPC -> -33.66666667
A18: Duration per Part: | B18: =reducefraction(1440,MPC,FALSE,FALSE,FALSE) -> 1 | C18: minutes | D18: =D12 -> 2881 | E18: =E17 -> -2020 | F18: =E18*24/MPC -> -33.66666667
A19: Offset: | B19: =Offset -> 0
A20: Leap Years: | B20: =javanese_leap_years(Offset) -> 3, 6, 8 | C20: except last year of 15x8=120 year cycle | I20: Reverse
I21: FALSE
A22: Year | B22: Month # | C22: Month in Year | D22: Leap Month? | E22: Month Length | F22: New Month Moment | G22: Elapsed | H22: Difference | I22: Prior Leap
A23: 1 | B23: 1 | C23: 1 | D23: =AND(C23=12,AND(MOD(A23,120)<>0,MOD(A23*3+Offset,8)<3)) -> FALSE | E23: =IF(MOD(C23,2)=1,IF(I23,29,30),IF(I23,30,29))+IF(D23,1,0) -> 30 | F23: 0 | G23: 0 | H23: =F23-G23 -> 0 | I23: =IF(Reverse,AND(MOD(A23-1,120)<>0,MOD((A23-1)*3+Offset,8)<3),FALSE) -> FALSE
A24: =IF(C24=1,A23+1,A23) -> 1 | B24: =B23+1 -> 2 | C24: =IF(C23=12,1,C23+1) -> 2 | D24: =AND(C24=12,AND(MOD(A24,120)<>0,MOD(A24*3+Offset,8)<3)) -> FALSE | E24: =IF(MOD(C24,2)=1,IF(I24,29,30),IF(I24,30,29))+IF(D24,1,0) -> 29 | F24: =F23+PPM -> 42524 | G24: =G23+E23*PPD -> 43200 | H24: =F24-G24 -> -676 | I24: =IF(Reverse,AND(MOD(A24-1,120)<>0,MOD((A24-1)*3+Offset,8)<3),FALSE) -> FALSE
A25: =IF(C25=1,A24+1,A24) -> 1 | B25: =B24+1 -> 3 | C25: =IF(C24=12,1,C24+1) -> 3 | D25: =AND(C25=12,AND(MOD(A25,120)<>0,MOD(A25*3+Offset,8)<3)) -> FALSE | E25: =IF(MOD(C25,2)=1,IF(I25,29,30),IF(I25,30,29))+IF(D25,1,0) -> 30 | F25: 85048 | G25: 84960 | H25: =F25-G25 -> 88 | I25: =IF(Reverse,AND(MOD(A25-1,120)<>0,MOD((A25-1)*3+Offset,8)<3),FALSE) -> FALSE
A26: 1 | B26: 4 | C26: 4 | D26: FALSE | E26: 29 | F26: 127572 | G26: 128160 | H26: -588 | I26: FALSE
A27: 1 | B27: 5 | C27: 5 | D27: FALSE | E27: 30 | F27: 170096 | G27: 169920 | H27: 176 | I27: FALSE
A28: 1 | B28: 6 | C28: 6 | D28: FALSE | E28: 29 | F28: 212620 | G28: 213120 | H28: -500 | I28: FALSE
A29: 1 | B29: 7 | C29: 7 | D29: FALSE | E29: 30 | F29: 255144 | G29: 254880 | H29: 264 | I29: FALSE
A30: 1 | B30: 8 | C30: 8 | D30: FALSE | E30: 29 | F30: 297668 | G30: 298080 | H30: -412 | I30: FALSE
A31: 1 | B31: 9 | C31: 9 | D31: FALSE | E31: 30 | F31: 340192 | G31: 339840 | H31: 352 | I31: FALSE
A32: 1 | B32: 10 | C32: 10 | D32: FALSE | E32: 29 | F32: 382716 | G32: 383040 | H32: -324 | I32: FALSE
A33: 1 | B33: 11 | C33: 11 | D33: FALSE | E33: 30 | F33: 425240 | G33: 424800 | H33: 440 | I33: FALSE
A34: 1 | B34: 12 | C34: 12 | D34: FALSE | E34: 29 | F34: 467764 | G34: 468000 | H34: -236 | I34: FALSE
A35: 2 | B35: 13 | C35: 1 | D35: FALSE | E35: 30 | F35: 510288 | G35: 509760 | H35: 528 | I35: FALSE
A36: 2 | B36: 14 | C36: 2 | D36: FALSE | E36: 29 | F36: 552812 | G36: 552960 | H36: -148 | I36: FALSE
A37: 2 | B37: 15 | C37: 3 | D37: FALSE | E37: 30 | F37: 595336 | G37: 594720 | H37: 616 | I37: FALSE
A38: 2 | B38: 16 | C38: 4 | D38: FALSE | E38: 29 | F38: 637860 | G38: 637920 | H38: -60 | I38: FALSE
A39: 2 | B39: 17 | C39: 5 | D39: FALSE | E39: 30 | F39: 680384 | G39: 679680 | H39: 704 | I39: FALSE
A40: 2 | B40: 18 | C40: 6 | D40: FALSE | E40: 29 | F40: 722908 | G40: 722880 | H40: 28 | I40: FALSE
A41: 2 | B41: 19 | C41: 7 | D41: FALSE | E41: 30 | F41: 765432 | G41: 764640 | H41: 792 | I41: FALSE
A42: 2 | B42: 20 | C42: 8 | D42: FALSE | E42: 29 | F42: 807956 | G42: 807840 | H42: 116 | I42: FALSE
A43: 2 | B43: 21 | C43: 9 | D43: FALSE | E43: 30 | F43: 850480 | G43: 849600 | H43: 880 | I43: FALSE
A44: 2 | B44: 22 | C44: 10 | D44: FALSE | E44: 29 | F44: 893004 | G44: 892800 | H44: 204 | I44: FALSE
A45: 2 | B45: 23 | C45: 11 | D45: FALSE | E45: 30 | F45: 935528 | G45: 934560 | H45: 968 | I45: FALSE
A46: 2 | B46: 24 | C46: 12 | D46: FALSE | E46: 29 | F46: 978052 | G46: 977760 | H46: 292 | I46: FALSE
A47: 3 | B47: 25 | C47: 1 | D47: FALSE | E47: 30 | F47: 1020576 | G47: 1019520 | H47: 1056 | I47: FALSE
A48: 3 | B48: 26 | C48: 2 | D48: FALSE | E48: 29 | F48: 1063100 | G48: 1062720 | H48: 380 | I48: FALSE
A49: 3 | B49: 27 | C49: 3 | D49: FALSE | E49: 30 | F49: 1105624 | G49: 1104480 | H49: 1144 | I49: FALSE
A50: 3 | B50: 28 | C50: 4 | D50: FALSE | E50: 29 | F50: 1148148 | G50: 1147680 | H50: 468 | I50: FALSE
A51: 3 | B51: 29 | C51: 5 | D51: FALSE | E51: 30 | F51: 1190672 | G51: 1189440 | H51: 1232 | I51: FALSE
A52: 3 | B52: 30 | C52: 6 | D52: FALSE | E52: 29 | F52: 1233196 | G52: 1232640 | H52: 556 | I52: FALSE
A53: 3 | B53: 31 | C53: 7 | D53: FALSE | E53: 30 | F53: 1275720 | G53: 1274400 | H53: 1320 | I53: FALSE
A54: 3 | B54: 32 | C54: 8 | D54: FALSE | E54: 29 | F54: 1318244 | G54: 1317600 | H54: 644 | I54: FALSE
A55: 3 | B55: 33 | C55: 9 | D55: FALSE | E55: 30 | F55: 1360768 | G55: 1359360 | H55: 1408 | I55: FALSE
A56: 3 | B56: 34 | C56: 10 | D56: FALSE | E56: 29 | F56: 1403292 | G56: 1402560 | H56: 732 | I56: FALSE
A57: 3 | B57: 35 | C57: 11 | D57: FALSE | E57: 30 | F57: 1445816 | G57: 1444320 | H57: 1496 | I57: FALSE
A58: 3 | B58: 36 | C58: 12 | D58: TRUE | E58: 30 | F58: 1488340 | G58: 1487520 | H58: 820 | I58: FALSE
A59: 4 | B59: 37 | C59: 1 | D59: FALSE | E59: 30 | F59: 1530864 | G59: 1530720 | H59: 144 | I59: FALSE
A60: 4 | B60: 38 | C60: 2 | D60: FALSE | E60: 29 | F60: 1573388 | G60: 1573920 | H60: -532 | I60: FALSE
A61: 4 | B61: 39 | C61: 3 | D61: FALSE | E61: 30 | F61: 1615912 | G61: 1615680 | H61: 232 | I61: FALSE
A62: 4 | B62: 40 | C62: 4 | D62: FALSE | E62: 29 | F62: 1658436 | G62: 1658880 | H62: -444 | I62: FALSE
A63: 4 | B63: 41 | C63: 5 | D63: FALSE | E63: 30 | F63: 1700960 | G63: 1700640 | H63: 320 | I63: FALSE
A64: 4 | B64: 42 | C64: 6 | D64: FALSE | E64: 29 | F64: 1743484 | G64: 1743840 | H64: -356 | I64: FALSE
A65: 4 | B65: 43 | C65: 7 | D65: FALSE | E65: 30 | F65: 1786008 | G65: 1785600 | H65: 408 | I65: FALSE
A66: 4 | B66: 44 | C66: 8 | D66: FALSE | E66: 29 | F66: 1828532 | G66: 1828800 | H66: -268 | I66: FALSE
A67: 4 | B67: 45 | C67: 9 | D67: FALSE | E67: 30 | F67: 1871056 | G67: 1870560 | H67: 496 | I67: FALSE
A68: 4 | B68: 46 | C68: 10 | D68: FALSE | E68: 29 | F68: 1913580 | G68: 1913760 | H68: -180 | I68: FALSE
A69: 4 | B69: 47 | C69: 11 | D69: FALSE | E69: 30 | F69: 1956104 | G69: 1955520 | H69: 584 | I69: FALSE
A70: 4 | B70: 48 | C70: 12 | D70: FALSE | E70: 29 | F70: 1998628 | G70: 1998720 | H70: -92 | I70: FALSE
A71: 5 | B71: 49 | C71: 1 | D71: FALSE | E71: 30 | F71: 2041152 | G71: 2040480 | H71: 672 | I71: FALSE
A72: 5 | B72: 50 | C72: 2 | D72: FALSE | E72: 29 | F72: 2083676 | G72: 2083680 | H72: -4 | I72: FALSE
A73: 5 | B73: 51 | C73: 3 | D73: FALSE | E73: 30 | F73: 2126200 | G73: 2125440 | H73: 760 | I73: FALSE
A74: 5 | B74: 52 | C74: 4 | D74: FALSE | E74: 29 | F74: 2168724 | G74: 2168640 | H74: 84 | I74: FALSE
A75: 5 | B75: 53 | C75: 5 | D75: FALSE | E75: 30 | F75: 2211248 | G75: 2210400 | H75: 848 | I75: FALSE
A76: 5 | B76: 54 | C76: 6 | D76: FALSE | E76: 29 | F76: 2253772 | G76: 2253600 | H76: 172 | I76: FALSE
A77: 5 | B77: 55 | C77: 7 | D77: FALSE | E77: 30 | F77: 2296296 | G77: 2295360 | H77: 936 | I77: FALSE
A78: 5 | B78: 56 | C78: 8 | D78: FALSE | E78: 29 | F78: 2338820 | G78: 2338560 | H78: 260 | I78: FALSE
A79: 5 | B79: 57 | C79: 9 | D79: FALSE | E79: 30 | F79: 2381344 | G79: 2380320 | H79: 1024 | I79: FALSE
A80: 5 | B80: 58 | C80: 10 | D80: FALSE | E80: 29 | F80: 2423868 | G80: 2423520 | H80: 348 | I80: FALSE
A81: 5 | B81: 59 | C81: 11 | D81: FALSE | E81: 30 | F81: 2466392 | G81: 2465280 | H81: 1112 | I81: FALSE
A82: 5 | B82: 60 | C82: 12 | D82: FALSE | E82: 29 | F82: 2508916 | G82: 2508480 | H82: 436 | I82: FALSE
A83: 6 | B83: 61 | C83: 1 | D83: FALSE | E83: 30 | F83: 2551440 | G83: 2550240 | H83: 1200 | I83: FALSE
A84: 6 | B84: 62 | C84: 2 | D84: FALSE | E84: 29 | F84: 2593964 | G84: 2593440 | H84: 524 | I84: FALSE
A85: 6 | B85: 63 | C85: 3 | D85: FALSE | E85: 30 | F85: 2636488 | G85: 2635200 | H85: 1288 | I85: FALSE
A86: 6 | B86: 64 | C86: 4 | D86: FALSE | E86: 29 | F86: 2679012 | G86: 2678400 | H86: 612 | I86: FALSE
A87: 6 | B87: 65 | C87: 5 | D87: FALSE | E87: 30 | F87: 2721536 | G87: 2720160 | H87: 1376 | I87: FALSE
A88: 6 | B88: 66 | C88: 6 | D88: FALSE | E88: 29 | F88: =F87+PPM -> 2764060 | G88: =G87+E87*PPD -> 2763360 | H88: 700 | I88: FALSE
A89: =IF(C89=1,A88+1,A88) -> 6 | B89: =B88+1 -> 67 | C89: =IF(C88=12,1,C88+1) -> 7 | D89: =AND(C89=12,AND(MOD(A89,120)<>0,MOD(A89*3+Offset,8)<3)) -> FALSE | E89: =IF(MOD(C89,2)=1,IF(I89,29,30),IF(I89,30,29))+IF(D89,1,0) -> 30 | F89: 2806584 | G89: 2805120 | H89: =F89-G89 -> 1464 | I89: =IF(Reverse,AND(MOD(A89-1,120)<>0,MOD((A89-1)*3+Offset,8)<3),FALSE) -> FALSE
A90: 6 | B90: 68 | C90: 8 | D90: FALSE | E90: 29 | F90: 2849108 | G90: 2848320 | H90: 788 | I90: FALSE
A91: 6 | B91: 69 | C91: 9 | D91: FALSE | E91: 30 | F91: 2891632 | G91: 2890080 | H91: 1552 | I91: FALSE
A92: 6 | B92: 70 | C92: 10 | D92: FALSE | E92: 29 | F92: 2934156 | G92: 2933280 | H92: 876 | I92: FALSE
A93: 6 | B93: 71 | C93: 11 | D93: FALSE | E93: 30 | F93: 2976680 | G93: 2975040 | H93: 1640 | I93: FALSE
A94: 6 | B94: 72 | C94: 12 | D94: TRUE | E94: 30 | F94: 3019204 | G94: 3018240 | H94: 964 | I94: FALSE
A95: 7 | B95: 73 | C95: 1 | D95: FALSE | E95: 30 | F95: 3061728 | G95: 3061440 | H95: 288 | I95: FALSE
A96: 7 | B96: 74 | C96: 2 | D96: FALSE | E96: 29 | F96: 3104252 | G96: 3104640 | H96: -388 | I96: FALSE
A97: 7 | B97: 75 | C97: 3 | D97: FALSE | E97: 30 | F97: 3146776 | G97: 3146400 | H97: 376 | I97: FALSE
A98: 7 | B98: 76 | C98: 4 | D98: FALSE | E98: 29 | F98: 3189300 | G98: 3189600 | H98: -300 | I98: FALSE
A99: 7 | B99: 77 | C99: 5 | D99: FALSE | E99: 30 | F99: 3231824 | G99: 3231360 | H99: 464 | I99: FALSE
A100: 7 | B100: 78 | C100: 6 | D100: FALSE | E100: 29 | F100: 3274348 | G100: 3274560 | H100: -212 | I100: FALSE
A101: 7 | B101: 79 | C101: 7 | D101: FALSE | E101: 30 | F101: 3316872 | G101: 3316320 | H101: 552 | I101: FALSE
A102: 7 | B102: 80 | C102: 8 | D102: FALSE | E102: 29 | F102: 3359396 | G102: 3359520 | H102: -124 | I102: FALSE
A103: 7 | B103: 81 | C103: 9 | D103: FALSE | E103: 30 | F103: 3401920 | G103: 3401280 | H103: 640 | I103: FALSE
A104: 7 | B104: 82 | C104: 10 | D104: FALSE | E104: 29 | F104: 3444444 | G104: 3444480 | H104: -36 | I104: FALSE
A105: 7 | B105: 83 | C105: 11 | D105: FALSE | E105: 30 | F105: 3486968 | G105: 3486240 | H105: 728 | I105: FALSE
A106: 7 | B106: 84 | C106: 12 | D106: FALSE | E106: 29 | F106: 3529492 | G106: 3529440 | H106: 52 | I106: FALSE
A107: 8 | B107: 85 | C107: 1 | D107: FALSE | E107: 30 | F107: 3572016 | G107: 3571200 | H107: 816 | I107: FALSE
A108: 8 | B108: 86 | C108: 2 | D108: FALSE | E108: 29 | F108: 3614540 | G108: 3614400 | H108: 140 | I108: FALSE
A109: 8 | B109: 87 | C109: 3 | D109: FALSE | E109: 30 | F109: 3657064 | G109: 3656160 | H109: 904 | I109: FALSE
A110: 8 | B110: 88 | C110: 4 | D110: FALSE | E110: 29 | F110: 3699588 | G110: 3699360 | H110: 228 | I110: FALSE
A111: 8 | B111: 89 | C111: 5 | D111: FALSE | E111: 30 | F111: 3742112 | G111: 3741120 | H111: 992 | I111: FALSE
A112: 8 | B112: 90 | C112: 6 | D112: FALSE | E112: 29 | F112: 3784636 | G112: 3784320 | H112: 316 | I112: FALSE
A113: 8 | B113: 91 | C113: 7 | D113: FALSE | E113: 30 | F113: 3827160 | G113: 3826080 | H113: 1080 | I113: FALSE
A114: 8 | B114: 92 | C114: 8 | D114: FALSE | E114: 29 | F114: 3869684 | G114: 3869280 | H114: 404 | I114: FALSE
A115: 8 | B115: 93 | C115: 9 | D115: FALSE | E115: 30 | F115: 3912208 | G115: 3911040 | H115: 1168 | I115: FALSE
A116: 8 | B116: 94 | C116: 10 | D116: FALSE | E116: 29 | F116: 3954732 | G116: 3954240 | H116: 492 | I116: FALSE
A117: 8 | B117: 95 | C117: 11 | D117: FALSE | E117: 30 | F117: 3997256 | G117: 3996000 | H117: 1256 | I117: FALSE
A118: 8 | B118: 96 | C118: 12 | D118: TRUE | E118: 30 | F118: 4039780 | G118: 4039200 | H118: 580 | I118: FALSE
A119: 9 | B119: 97 | C119: 1 | D119: FALSE | E119: 30 | F119: 4082304 | G119: 4082400 | H119: -96 | I119: FALSE
A120: 9 | B120: 98 | C120: 2 | D120: FALSE | E120: 29 | F120: 4124828 | G120: 4125600 | H120: -772 | I120: FALSE
A121: 9 | B121: 99 | C121: 3 | D121: FALSE | E121: 30 | F121: 4167352 | G121: 4167360 | H121: -8 | I121: FALSE
A122: 9 | B122: 100 | C122: 4 | D122: FALSE | E122: 29 | F122: 4209876 | G122: 4210560 | H122: -684 | I122: FALSE
A123: 9 | B123: 101 | C123: 5 | D123: FALSE | E123: 30 | F123: 4252400 | G123: 4252320 | H123: 80 | I123: FALSE
A124: 9 | B124: 102 | C124: 6 | D124: FALSE | E124: 29 | F124: 4294924 | G124: 4295520 | H124: -596 | I124: FALSE
A125: 9 | B125: 103 | C125: 7 | D125: FALSE | E125: 30 | F125: 4337448 | G125: 4337280 | H125: 168 | I125: FALSE
A126: 9 | B126: 104 | C126: 8 | D126: FALSE | E126: 29 | F126: 4379972 | G126: 4380480 | H126: -508 | I126: FALSE
A127: 9 | B127: 105 | C127: 9 | D127: FALSE | E127: 30 | F127: 4422496 | G127: 4422240 | H127: 256 | I127: FALSE
A128: 9 | B128: 106 | C128: 10 | D128: FALSE | E128: 29 | F128: 4465020 | G128: 4465440 | H128: -420 | I128: FALSE
A129: 9 | B129: 107 | C129: 11 | D129: FALSE | E129: 30 | F129: 4507544 | G129: 4507200 | H129: 344 | I129: FALSE
A130: 9 | B130: 108 | C130: 12 | D130: FALSE | E130: 29 | F130: 4550068 | G130: 4550400 | H130: -332 | I130: FALSE
A131: 10 | B131: 109 | C131: 1 | D131: FALSE | E131: 30 | F131: 4592592 | G131: 4592160 | H131: 432 | I131: FALSE
A132: 10 | B132: 110 | C132: 2 | D132: FALSE | E132: 29 | F132: 4635116 | G132: 4635360 | H132: -244 | I132: FALSE
A133: 10 | B133: 111 | C133: 3 | D133: FALSE | E133: 30 | F133: 4677640 | G133: 4677120 | H133: 520 | I133: FALSE
A134: 10 | B134: 112 | C134: 4 | D134: FALSE | E134: 29 | F134: 4720164 | G134: 4720320 | H134: -156 | I134: FALSE
A135: 10 | B135: 113 | C135: 5 | D135: FALSE | E135: 30 | F135: 4762688 | G135: 4762080 | H135: 608 | I135: FALSE
A136: 10 | B136: 114 | C136: 6 | D136: FALSE | E136: 29 | F136: 4805212 | G136: 4805280 | H136: -68 | I136: FALSE
A137: 10 | B137: 115 | C137: 7 | D137: FALSE | E137: 30 | F137: 4847736 | G137: 4847040 | H137: 696 | I137: FALSE
A138: 10 | B138: 116 | C138: 8 | D138: FALSE | E138: 29 | F138: 4890260 | G138: 4890240 | H138: 20 | I138: FALSE
A139: 10 | B139: 117 | C139: 9 | D139: FALSE | E139: 30 | F139: 4932784 | G139: 4932000 | H139: 784 | I139: FALSE
A140: 10 | B140: 118 | C140: 10 | D140: FALSE | E140: 29 | F140: 4975308 | G140: 4975200 | H140: 108 | I140: FALSE
A141: 10 | B141: 119 | C141: 11 | D141: FALSE | E141: 30 | F141: 5017832 | G141: 5016960 | H141: 872 | I141: FALSE
A142: 10 | B142: 120 | C142: 12 | D142: FALSE | E142: 29 | F142: 5060356 | G142: 5060160 | H142: 196 | I142: FALSE
A143: 11 | B143: 121 | C143: 1 | D143: FALSE | E143: 30 | F143: 5102880 | G143: 5101920 | H143: 960 | I143: FALSE
A144: 11 | B144: 122 | C144: 2 | D144: FALSE | E144: 29 | F144: 5145404 | G144: 5145120 | H144: 284 | I144: FALSE
A145: 11 | B145: 123 | C145: 3 | D145: FALSE | E145: 30 | F145: 5187928 | G145: 5186880 | H145: 1048 | I145: FALSE
A146: 11 | B146: 124 | C146: 4 | D146: FALSE | E146: 29 | F146: 5230452 | G146: 5230080 | H146: 372 | I146: FALSE
A147: 11 | B147: 125 | C147: 5 | D147: FALSE | E147: 30 | F147: 5272976 | G147: 5271840 | H147: 1136 | I147: FALSE
A148: 11 | B148: 126 | C148: 6 | D148: FALSE | E148: 29 | F148: 5315500 | G148: 5315040 | H148: 460 | I148: FALSE
A149: 11 | B149: 127 | C149: 7 | D149: FALSE | E149: 30 | F149: 5358024 | G149: 5356800 | H149: 1224 | I149: FALSE
A150: 11 | B150: 128 | C150: 8 | D150: FALSE | E150: 29 | F150: 5400548 | G150: 5400000 | H150: 548 | I150: FALSE
A151: 11 | B151: 129 | C151: 9 | D151: FALSE | E151: 30 | F151: 5443072 | G151: 5441760 | H151: 1312 | I151: FALSE
A152: 11 | B152: 130 | C152: 10 | D152: FALSE | E152: 29 | F152: =F151+PPM -> 5485596 | G152: =G151+E151*PPD -> 5484960 | H152: 636 | I152: FALSE
A153: =IF(C153=1,A152+1,A152) -> 11 | B153: =B152+1 -> 131 | C153: =IF(C152=12,1,C152+1) -> 11 | D153: =AND(C153=12,AND(MOD(A153,120)<>0,MOD(A153*3+Offset,8)<3)) -> FALSE | E153: =IF(MOD(C153,2)=1,IF(I153,29,30),IF(I153,30,29))+IF(D153,1,0) -> 30 | F153: 5528120 | G153: 5526720 | H153: =F153-G153 -> 1400 | I153: =IF(Reverse,AND(MOD(A153-1,120)<>0,MOD((A153-1)*3+Offset,8)<3),FALSE) -> FALSE
A154: 11 | B154: 132 | C154: 12 | D154: TRUE | E154: 30 | F154: 5570644 | G154: 5569920 | H154: 724 | I154: FALSE
A155: 12 | B155: 133 | C155: 1 | D155: FALSE | E155: 30 | F155: 5613168 | G155: 5613120 | H155: 48 | I155: FALSE
A156: 12 | B156: 134 | C156: 2 | D156: FALSE | E156: 29 | F156: 5655692 | G156: 5656320 | H156: -628 | I156: FALSE
A157: 12 | B157: 135 | C157: 3 | D157: FALSE | E157: 30 | F157: 5698216 | G157: 5698080 | H157: 136 | I157: FALSE
A158: 12 | B158: 136 | C158: 4 | D158: FALSE | E158: 29 | F158: 5740740 | G158: 5741280 | H158: -540 | I158: FALSE
A159: 12 | B159: 137 | C159: 5 | D159: FALSE | E159: 30 | F159: 5783264 | G159: 5783040 | H159: 224 | I159: FALSE
A160: 12 | B160: 138 | C160: 6 | D160: FALSE | E160: 29 | F160: 5825788 | G160: 5826240 | H160: -452 | I160: FALSE
A161: 12 | B161: 139 | C161: 7 | D161: FALSE | E161: 30 | F161: 5868312 | G161: 5868000 | H161: 312 | I161: FALSE
A162: 12 | B162: 140 | C162: 8 | D162: FALSE | E162: 29 | F162: 5910836 | G162: 5911200 | H162: -364 | I162: FALSE
A163: 12 | B163: 141 | C163: 9 | D163: FALSE | E163: 30 | F163: 5953360 | G163: 5952960 | H163: 400 | I163: FALSE
A164: 12 | B164: 142 | C164: 10 | D164: FALSE | E164: 29 | F164: 5995884 | G164: 5996160 | H164: -276 | I164: FALSE
A165: 12 | B165: 143 | C165: 11 | D165: FALSE | E165: 30 | F165: 6038408 | G165: 6037920 | H165: 488 | I165: FALSE
A166: 12 | B166: 144 | C166: 12 | D166: FALSE | E166: 29 | F166: 6080932 | G166: 6081120 | H166: -188 | I166: FALSE
A167: 13 | B167: 145 | C167: 1 | D167: FALSE | E167: 30 | F167: 6123456 | G167: 6122880 | H167: 576 | I167: FALSE
A168: 13 | B168: 146 | C168: 2 | D168: FALSE | E168: 29 | F168: 6165980 | G168: 6166080 | H168: -100 | I168: FALSE
A169: 13 | B169: 147 | C169: 3 | D169: FALSE | E169: 30 | F169: 6208504 | G169: 6207840 | H169: 664 | I169: FALSE
A170: 13 | B170: 148 | C170: 4 | D170: FALSE | E170: 29 | F170: 6251028 | G170: 6251040 | H170: -12 | I170: FALSE
A171: 13 | B171: 149 | C171: 5 | D171: FALSE | E171: 30 | F171: 6293552 | G171: 6292800 | H171: 752 | I171: FALSE
A172: 13 | B172: 150 | C172: 6 | D172: FALSE | E172: 29 | F172: 6336076 | G172: 6336000 | H172: 76 | I172: FALSE
A173: 13 | B173: 151 | C173: 7 | D173: FALSE | E173: 30 | F173: 6378600 | G173: 6377760 | H173: 840 | I173: FALSE
A174: 13 | B174: 152 | C174: 8 | D174: FALSE | E174: 29 | F174: 6421124 | G174: 6420960 | H174: 164 | I174: FALSE
A175: 13 | B175: 153 | C175: 9 | D175: FALSE | E175: 30 | F175: 6463648 | G175: 6462720 | H175: 928 | I175: FALSE
A176: 13 | B176: 154 | C176: 10 | D176: FALSE | E176: 29 | F176: 6506172 | G176: 6505920 | H176: 252 | I176: FALSE
A177: 13 | B177: 155 | C177: 11 | D177: FALSE | E177: 30 | F177: 6548696 | G177: 6547680 | H177: 1016 | I177: FALSE
A178: 13 | B178: 156 | C178: 12 | D178: FALSE | E178: 29 | F178: 6591220 | G178: 6590880 | H178: 340 | I178: FALSE
A179: 14 | B179: 157 | C179: 1 | D179: FALSE | E179: 30 | F179: 6633744 | G179: 6632640 | H179: 1104 | I179: FALSE
A180: 14 | B180: 158 | C180: 2 | D180: FALSE | E180: 29 | F180: 6676268 | G180: 6675840 | H180: 428 | I180: FALSE
A181: 14 | B181: 159 | C181: 3 | D181: FALSE | E181: 30 | F181: 6718792 | G181: 6717600 | H181: 1192 | I181: FALSE
A182: 14 | B182: 160 | C182: 4 | D182: FALSE | E182: 29 | F182: 6761316 | G182: 6760800 | H182: 516 | I182: FALSE
A183: 14 | B183: 161 | C183: 5 | D183: FALSE | E183: 30 | F183: 6803840 | G183: 6802560 | H183: 1280 | I183: FALSE
A184: 14 | B184: 162 | C184: 6 | D184: FALSE | E184: 29 | F184: 6846364 | G184: 6845760 | H184: 604 | I184: FALSE
A185: 14 | B185: 163 | C185: 7 | D185: FALSE | E185: 30 | F185: 6888888 | G185: 6887520 | H185: 1368 | I185: FALSE
A186: 14 | B186: 164 | C186: 8 | D186: FALSE | E186: 29 | F186: 6931412 | G186: 6930720 | H186: 692 | I186: FALSE
A187: 14 | B187: 165 | C187: 9 | D187: FALSE | E187: 30 | F187: 6973936 | G187: 6972480 | H187: 1456 | I187: FALSE
A188: 14 | B188: 166 | C188: 10 | D188: FALSE | E188: 29 | F188: 7016460 | G188: 7015680 | H188: 780 | I188: FALSE
A189: 14 | B189: 167 | C189: 11 | D189: FALSE | E189: 30 | F189: 7058984 | G189: 7057440 | H189: 1544 | I189: FALSE
A190: 14 | B190: 168 | C190: 12 | D190: TRUE | E190: 30 | F190: 7101508 | G190: 7100640 | H190: 868 | I190: FALSE
A191: 15 | B191: 169 | C191: 1 | D191: FALSE | E191: 30 | F191: 7144032 | G191: 7143840 | H191: 192 | I191: FALSE
A192: 15 | B192: 170 | C192: 2 | D192: FALSE | E192: 29 | F192: 7186556 | G192: 7187040 | H192: -484 | I192: FALSE
A193: 15 | B193: 171 | C193: 3 | D193: FALSE | E193: 30 | F193: 7229080 | G193: 7228800 | H193: 280 | I193: FALSE
A194: 15 | B194: 172 | C194: 4 | D194: FALSE | E194: 29 | F194: 7271604 | G194: 7272000 | H194: -396 | I194: FALSE
A195: 15 | B195: 173 | C195: 5 | D195: FALSE | E195: 30 | F195: 7314128 | G195: 7313760 | H195: 368 | I195: FALSE
A196: 15 | B196: 174 | C196: 6 | D196: FALSE | E196: 29 | F196: 7356652 | G196: 7356960 | H196: -308 | I196: FALSE
A197: 15 | B197: 175 | C197: 7 | D197: FALSE | E197: 30 | F197: 7399176 | G197: 7398720 | H197: 456 | I197: FALSE
A198: 15 | B198: 176 | C198: 8 | D198: FALSE | E198: 29 | F198: 7441700 | G198: 7441920 | H198: -220 | I198: FALSE
A199: 15 | B199: 177 | C199: 9 | D199: FALSE | E199: 30 | F199: 7484224 | G199: 7483680 | H199: 544 | I199: FALSE
A200: 15 | B200: 178 | C200: 10 | D200: FALSE | E200: 29 | F200: 7526748 | G200: 7526880 | H200: -132 | I200: FALSE
A201: 15 | B201: 179 | C201: 11 | D201: FALSE | E201: 30 | F201: 7569272 | G201: 7568640 | H201: 632 | I201: FALSE
... 2713 more rows

Sheet Years
A1: Month in Cycle | B1: Year | C1: New Year Moment | D1: Elapsed | E1: Difference | F1: Top | G1: Year Start | H1: Year
A2: =StartMonth -> 9 | B2: 1 | C2: =(A2-1)*PPM -> 340192 | D2: =LOOKUP(A2,Data!B$23:B$2914,Data!G$23:G$2914) -> 339840 | E2: =C2-D2 -> 352 | F2: 2000 | G2: =A2-StartMonth+1 -> 1 | H2: 1
A3: =A2+12 -> 21 | B3: =MOD(B2,8)+1 -> 2 | C3: =(A3-1)*PPM -> 850480 | D3: =LOOKUP(A3,Data!B$23:B$2914,Data!G$23:G$2914) -> 849600 | E3: =C3-D3 -> 880 | F3: =F2 -> 2000 | G3: =A3-StartMonth+1 -> 13 | H3: =H2+1 -> 2
A4: =A3+12 -> 33 | B4: =MOD(B3,8)+1 -> 3 | C4: =(A4-1)*PPM -> 1360768 | D4: =LOOKUP(A4,Data!B$23:B$2914,Data!G$23:G$2914) -> 1359360 | E4: =C4-D4 -> 1408 | F4: =F3 -> 2000 | G4: =A4-StartMonth+1 -> 25 | H4: =H3+1 -> 3
A5: 45 | B5: 4 | C5: 1871056 | D5: =LOOKUP(A5,Data!B$23:B$2914,Data!G$23:G$2914) -> 1870560 | E5: 496 | F5: 2000 | G5: 37 | H5: 4
A6: 57 | B6: 5 | C6: 2381344 | D6: =LOOKUP(A6,Data!B$23:B$2914,Data!G$23:G$2914) -> 2380320 | E6: 1024 | F6: 2000 | G6: 49 | H6: 5
A7: 69 | B7: 6 | C7: 2891632 | D7: =LOOKUP(A7,Data!B$23:B$2914,Data!G$23:G$2914) -> 2890080 | E7: 1552 | F7: 2000 | G7: 61 | H7: 6
A8: 81 | B8: 7 | C8: 3401920 | D8: =LOOKUP(A8,Data!B$23:B$2914,Data!G$23:G$2914) -> 3401280 | E8: 640 | F8: 2000 | G8: 73 | H8: 7
A9: 93 | B9: 8 | C9: 3912208 | D9: =LOOKUP(A9,Data!B$23:B$2914,Data!G$23:G$2914) -> 3911040 | E9: 1168 | F9: 2000 | G9: 85 | H9: 8
A10: 105 | B10: 1 | C10: 4422496 | D10: =LOOKUP(A10,Data!B$23:B$2914,Data!G$23:G$2914) -> 4422240 | E10: 256 | F10: 2000 | G10: 97 | H10: 9
A11: 117 | B11: 2 | C11: 4932784 | D11: =LOOKUP(A11,Data!B$23:B$2914,Data!G$23:G$2914) -> 4932000 | E11: 784 | F11: 2000 | G11: 109 | H11: 10
A12: 129 | B12: 3 | C12: 5443072 | D12: =LOOKUP(A12,Data!B$23:B$2914,Data!G$23:G$2914) -> 5441760 | E12: 1312 | F12: 2000 | G12: 121 | H12: 11
A13: 141 | B13: 4 | C13: 5953360 | D13: =LOOKUP(A13,Data!B$23:B$2914,Data!G$23:G$2914) -> 5952960 | E13: 400 | F13: 2000 | G13: 133 | H13: 12
A14: 153 | B14: 5 | C14: 6463648 | D14: =LOOKUP(A14,Data!B$23:B$2914,Data!G$23:G$2914) -> 6462720 | E14: 928 | F14: 2000 | G14: 145 | H14: 13
A15: 165 | B15: 6 | C15: 6973936 | D15: =LOOKUP(A15,Data!B$23:B$2914,Data!G$23:G$2914) -> 6972480 | E15: 1456 | F15: 2000 | G15: 157 | H15: 14
A16: 177 | B16: 7 | C16: 7484224 | D16: =LOOKUP(A16,Data!B$23:B$2914,Data!G$23:G$2914) -> 7483680 | E16: 544 | F16: 2000 | G16: 169 | H16: 15
A17: 189 | B17: 8 | C17: 7994512 | D17: =LOOKUP(A17,Data!B$23:B$2914,Data!G$23:G$2914) -> 7993440 | E17: 1072 | F17: 2000 | G17: 181 | H17: 16
A18: 201 | B18: 1 | C18: 8504800 | D18: =LOOKUP(A18,Data!B$23:B$2914,Data!G$23:G$2914) -> 8504640 | E18: 160 | F18: 2000 | G18: 193 | H18: 17
A19: 213 | B19: 2 | C19: 9015088 | D19: =LOOKUP(A19,Data!B$23:B$2914,Data!G$23:G$2914) -> 9014400 | E19: 688 | F19: 2000 | G19: 205 | H19: 18
A20: 225 | B20: 3 | C20: 9525376 | D20: =LOOKUP(A20,Data!B$23:B$2914,Data!G$23:G$2914) -> 9524160 | E20: 1216 | F20: 2000 | G20: 217 | H20: 19
A21: 237 | B21: 4 | C21: 10035664 | D21: =LOOKUP(A21,Data!B$23:B$2914,Data!G$23:G$2914) -> 10035360 | E21: 304 | F21: 2000 | G21: 229 | H21: 20
A22: 249 | B22: 5 | C22: 10545952 | D22: =LOOKUP(A22,Data!B$23:B$2914,Data!G$23:G$2914) -> 10545120 | E22: 832 | F22: 2000 | G22: 241 | H22: 21
A23: 261 | B23: 6 | C23: 11056240 | D23: =LOOKUP(A23,Data!B$23:B$2914,Data!G$23:G$2914) -> 11054880 | E23: 1360 | F23: 2000 | G23: 253 | H23: 22
A24: 273 | B24: 7 | C24: 11566528 | D24: =LOOKUP(A24,Data!B$23:B$2914,Data!G$23:G$2914) -> 11566080 | E24: 448 | F24: 2000 | G24: 265 | H24: 23
A25: 285 | B25: 8 | C25: 12076816 | D25: =LOOKUP(A25,Data!B$23:B$2914,Data!G$23:G$2914) -> 12075840 | E25: 976 | F25: 2000 | G25: 277 | H25: 24
A26: 297 | B26: 1 | C26: 12587104 | D26: =LOOKUP(A26,Data!B$23:B$2914,Data!G$23:G$2914) -> 12587040 | E26: 64 | F26: 2000 | G26: 289 | H26: 25
A27: 309 | B27: 2 | C27: 13097392 | D27: =LOOKUP(A27,Data!B$23:B$2914,Data!G$23:G$2914) -> 13096800 | E27: 592 | F27: 2000 | G27: 301 | H27: 26
A28: 321 | B28: 3 | C28: 13607680 | D28: =LOOKUP(A28,Data!B$23:B$2914,Data!G$23:G$2914) -> 13606560 | E28: 1120 | F28: 2000 | G28: 313 | H28: 27
A29: 333 | B29: 4 | C29: 14117968 | D29: =LOOKUP(A29,Data!B$23:B$2914,Data!G$23:G$2914) -> 14117760 | E29: 208 | F29: 2000 | G29: 325 | H29: 28
A30: 345 | B30: 5 | C30: 14628256 | D30: =LOOKUP(A30,Data!B$23:B$2914,Data!G$23:G$2914) -> 14627520 | E30: 736 | F30: 2000 | G30: 337 | H30: 29
A31: 357 | B31: 6 | C31: 15138544 | D31: =LOOKUP(A31,Data!B$23:B$2914,Data!G$23:G$2914) -> 15137280 | E31: 1264 | F31: 2000 | G31: 349 | H31: 30
A32: 369 | B32: 7 | C32: 15648832 | D32: =LOOKUP(A32,Data!B$23:B$2914,Data!G$23:G$2914) -> 15648480 | E32: 352 | F32: 2000 | G32: 361 | H32: 31
A33: 381 | B33: 8 | C33: 16159120 | D33: =LOOKUP(A33,Data!B$23:B$2914,Data!G$23:G$2914) -> 16158240 | E33: 880 | F33: 2000 | G33: 373 | H33: 32
A34: 393 | B34: 1 | C34: 16669408 | D34: =LOOKUP(A34,Data!B$23:B$2914,Data!G$23:G$2914) -> 16669440 | E34: -32 | F34: 2000 | G34: 385 | H34: 33
A35: 405 | B35: 2 | C35: 17179696 | D35: =LOOKUP(A35,Data!B$23:B$2914,Data!G$23:G$2914) -> 17179200 | E35: 496 | F35: 2000 | G35: 397 | H35: 34
A36: 417 | B36: 3 | C36: 17689984 | D36: =LOOKUP(A36,Data!B$23:B$2914,Data!G$23:G$2914) -> 17688960 | E36: 1024 | F36: 2000 | G36: 409 | H36: 35
A37: 429 | B37: 4 | C37: 18200272 | D37: =LOOKUP(A37,Data!B$23:B$2914,Data!G$23:G$2914) -> 18200160 | E37: 112 | F37: 2000 | G37: 421 | H37: 36
A38: 441 | B38: 5 | C38: 18710560 | D38: =LOOKUP(A38,Data!B$23:B$2914,Data!G$23:G$2914) -> 18709920 | E38: 640 | F38: 2000 | G38: 433 | H38: 37
A39: 453 | B39: 6 | C39: 19220848 | D39: =LOOKUP(A39,Data!B$23:B$2914,Data!G$23:G$2914) -> 19219680 | E39: 1168 | F39: 2000 | G39: 445 | H39: 38
A40: 465 | B40: 7 | C40: 19731136 | D40: =LOOKUP(A40,Data!B$23:B$2914,Data!G$23:G$2914) -> 19730880 | E40: 256 | F40: 2000 | G40: 457 | H40: 39
A41: 477 | B41: 8 | C41: 20241424 | D41: =LOOKUP(A41,Data!B$23:B$2914,Data!G$23:G$2914) -> 20240640 | E41: 784 | F41: 2000 | G41: 469 | H41: 40
A42: 489 | B42: 1 | C42: 20751712 | D42: =LOOKUP(A42,Data!B$23:B$2914,Data!G$23:G$2914) -> 20751840 | E42: -128 | F42: 2000 | G42: 481 | H42: 41
A43: 501 | B43: 2 | C43: 21262000 | D43: =LOOKUP(A43,Data!B$23:B$2914,Data!G$23:G$2914) -> 21261600 | E43: 400 | F43: 2000 | G43: 493 | H43: 42
A44: 513 | B44: 3 | C44: 21772288 | D44: =LOOKUP(A44,Data!B$23:B$2914,Data!G$23:G$2914) -> 21771360 | E44: 928 | F44: 2000 | G44: 505 | H44: 43
A45: 525 | B45: 4 | C45: 22282576 | D45: =LOOKUP(A45,Data!B$23:B$2914,Data!G$23:G$2914) -> 22282560 | E45: 16 | F45: 2000 | G45: 517 | H45: 44
A46: 537 | B46: 5 | C46: 22792864 | D46: =LOOKUP(A46,Data!B$23:B$2914,Data!G$23:G$2914) -> 22792320 | E46: 544 | F46: 2000 | G46: 529 | H46: 45
A47: 549 | B47: 6 | C47: 23303152 | D47: =LOOKUP(A47,Data!B$23:B$2914,Data!G$23:G$2914) -> 23302080 | E47: 1072 | F47: 2000 | G47: 541 | H47: 46
A48: 561 | B48: 7 | C48: 23813440 | D48: =LOOKUP(A48,Data!B$23:B$2914,Data!G$23:G$2914) -> 23813280 | E48: 160 | F48: 2000 | G48: 553 | H48: 47
A49: 573 | B49: 8 | C49: 24323728 | D49: =LOOKUP(A49,Data!B$23:B$2914,Data!G$23:G$2914) -> 24323040 | E49: 688 | F49: 2000 | G49: 565 | H49: 48
A50: 585 | B50: 1 | C50: 24834016 | D50: =LOOKUP(A50,Data!B$23:B$2914,Data!G$23:G$2914) -> 24834240 | E50: -224 | F50: 2000 | G50: 577 | H50: 49
A51: 597 | B51: 2 | C51: 25344304 | D51: =LOOKUP(A51,Data!B$23:B$2914,Data!G$23:G$2914) -> 25344000 | E51: 304 | F51: 2000 | G51: 589 | H51: 50
A52: 609 | B52: 3 | C52: 25854592 | D52: =LOOKUP(A52,Data!B$23:B$2914,Data!G$23:G$2914) -> 25853760 | E52: 832 | F52: 2000 | G52: 601 | H52: 51
A53: 621 | B53: 4 | C53: 26364880 | D53: =LOOKUP(A53,Data!B$23:B$2914,Data!G$23:G$2914) -> 26364960 | E53: -80 | F53: 2000 | G53: 613 | H53: 52
A54: 633 | B54: 5 | C54: 26875168 | D54: =LOOKUP(A54,Data!B$23:B$2914,Data!G$23:G$2914) -> 26874720 | E54: 448 | F54: 2000 | G54: 625 | H54: 53
A55: 645 | B55: 6 | C55: 27385456 | D55: =LOOKUP(A55,Data!B$23:B$2914,Data!G$23:G$2914) -> 27384480 | E55: 976 | F55: 2000 | G55: 637 | H55: 54
A56: 657 | B56: 7 | C56: 27895744 | D56: =LOOKUP(A56,Data!B$23:B$2914,Data!G$23:G$2914) -> 27895680 | E56: 64 | F56: 2000 | G56: 649 | H56: 55
A57: 669 | B57: 8 | C57: 28406032 | D57: =LOOKUP(A57,Data!B$23:B$2914,Data!G$23:G$2914) -> 28405440 | E57: 592 | F57: 2000 | G57: 661 | H57: 56
A58: 681 | B58: 1 | C58: 28916320 | D58: =LOOKUP(A58,Data!B$23:B$2914,Data!G$23:G$2914) -> 28916640 | E58: -320 | F58: 2000 | G58: 673 | H58: 57
A59: 693 | B59: 2 | C59: 29426608 | D59: =LOOKUP(A59,Data!B$23:B$2914,Data!G$23:G$2914) -> 29426400 | E59: 208 | F59: 2000 | G59: 685 | H59: 58
A60: 705 | B60: 3 | C60: 29936896 | D60: =LOOKUP(A60,Data!B$23:B$2914,Data!G$23:G$2914) -> 29936160 | E60: 736 | F60: 2000 | G60: 697 | H60: 59
A61: 717 | B61: 4 | C61: 30447184 | D61: =LOOKUP(A61,Data!B$23:B$2914,Data!G$23:G$2914) -> 30447360 | E61: -176 | F61: 2000 | G61: 709 | H61: 60
A62: 729 | B62: 5 | C62: 30957472 | D62: =LOOKUP(A62,Data!B$23:B$2914,Data!G$23:G$2914) -> 30957120 | E62: 352 | F62: 2000 | G62: 721 | H62: 61
A63: 741 | B63: 6 | C63: 31467760 | D63: =LOOKUP(A63,Data!B$23:B$2914,Data!G$23:G$2914) -> 31466880 | E63: 880 | F63: 2000 | G63: 733 | H63: 62
A64: 753 | B64: 7 | C64: 31978048 | D64: =LOOKUP(A64,Data!B$23:B$2914,Data!G$23:G$2914) -> 31978080 | E64: -32 | F64: 2000 | G64: 745 | H64: 63
A65: 765 | B65: 8 | C65: 32488336 | D65: =LOOKUP(A65,Data!B$23:B$2914,Data!G$23:G$2914) -> 32487840 | E65: 496 | F65: 2000 | G65: 757 | H65: 64
A66: 777 | B66: 1 | C66: 32998624 | D66: =LOOKUP(A66,Data!B$23:B$2914,Data!G$23:G$2914) -> 32999040 | E66: -416 | F66: 2000 | G66: 769 | H66: 65
A67: 789 | B67: 2 | C67: 33508912 | D67: =LOOKUP(A67,Data!B$23:B$2914,Data!G$23:G$2914) -> 33508800 | E67: 112 | F67: 2000 | G67: 781 | H67: 66
A68: =A67+12 -> 801 | B68: =MOD(B67,8)+1 -> 3 | C68: =(A68-1)*PPM -> 34019200 | D68: =LOOKUP(A68,Data!B$23:B$2914,Data!G$23:G$2914) -> 34018560 | E68: =C68-D68 -> 640 | F68: =F67 -> 2000 | G68: =A68-StartMonth+1 -> 793 | H68: =H67+1 -> 67
A69: 813 | B69: 4 | C69: 34529488 | D69: =LOOKUP(A69,Data!B$23:B$2914,Data!G$23:G$2914) -> 34529760 | E69: -272 | F69: 2000 | G69: 805 | H69: 68
A70: 825 | B70: 5 | C70: 35039776 | D70: =LOOKUP(A70,Data!B$23:B$2914,Data!G$23:G$2914) -> 35039520 | E70: 256 | F70: 2000 | G70: 817 | H70: 69
A71: 837 | B71: 6 | C71: 35550064 | D71: =LOOKUP(A71,Data!B$23:B$2914,Data!G$23:G$2914) -> 35549280 | E71: 784 | F71: 2000 | G71: 829 | H71: 70
A72: 849 | B72: 7 | C72: 36060352 | D72: =LOOKUP(A72,Data!B$23:B$2914,Data!G$23:G$2914) -> 36060480 | E72: -128 | F72: 2000 | G72: 841 | H72: 71
A73: 861 | B73: 8 | C73: 36570640 | D73: =LOOKUP(A73,Data!B$23:B$2914,Data!G$23:G$2914) -> 36570240 | E73: 400 | F73: 2000 | G73: 853 | H73: 72
A74: 873 | B74: 1 | C74: 37080928 | D74: =LOOKUP(A74,Data!B$23:B$2914,Data!G$23:G$2914) -> 37081440 | E74: -512 | F74: 2000 | G74: 865 | H74: 73
A75: 885 | B75: 2 | C75: 37591216 | D75: =LOOKUP(A75,Data!B$23:B$2914,Data!G$23:G$2914) -> 37591200 | E75: 16 | F75: 2000 | G75: 877 | H75: 74
A76: 897 | B76: 3 | C76: 38101504 | D76: =LOOKUP(A76,Data!B$23:B$2914,Data!G$23:G$2914) -> 38100960 | E76: 544 | F76: 2000 | G76: 889 | H76: 75
A77: 909 | B77: 4 | C77: 38611792 | D77: =LOOKUP(A77,Data!B$23:B$2914,Data!G$23:G$2914) -> 38612160 | E77: -368 | F77: 2000 | G77: 901 | H77: 76
A78: 921 | B78: 5 | C78: 39122080 | D78: =LOOKUP(A78,Data!B$23:B$2914,Data!G$23:G$2914) -> 39121920 | E78: 160 | F78: 2000 | G78: 913 | H78: 77
A79: 933 | B79: 6 | C79: 39632368 | D79: =LOOKUP(A79,Data!B$23:B$2914,Data!G$23:G$2914) -> 39631680 | E79: 688 | F79: 2000 | G79: 925 | H79: 78
A80: 945 | B80: 7 | C80: 40142656 | D80: =LOOKUP(A80,Data!B$23:B$2914,Data!G$23:G$2914) -> 40142880 | E80: -224 | F80: 2000 | G80: 937 | H80: 79
A81: 957 | B81: 8 | C81: 40652944 | D81: =LOOKUP(A81,Data!B$23:B$2914,Data!G$23:G$2914) -> 40652640 | E81: 304 | F81: 2000 | G81: 949 | H81: 80
A82: 969 | B82: 1 | C82: 41163232 | D82: =LOOKUP(A82,Data!B$23:B$2914,Data!G$23:G$2914) -> 41163840 | E82: -608 | F82: 2000 | G82: 961 | H82: 81
A83: 981 | B83: 2 | C83: 41673520 | D83: =LOOKUP(A83,Data!B$23:B$2914,Data!G$23:G$2914) -> 41673600 | E83: -80 | F83: 2000 | G83: 973 | H83: 82
A84: 993 | B84: 3 | C84: 42183808 | D84: =LOOKUP(A84,Data!B$23:B$2914,Data!G$23:G$2914) -> 42183360 | E84: 448 | F84: 2000 | G84: 985 | H84: 83
A85: 1005 | B85: 4 | C85: 42694096 | D85: =LOOKUP(A85,Data!B$23:B$2914,Data!G$23:G$2914) -> 42694560 | E85: -464 | F85: 2000 | G85: 997 | H85: 84
A86: 1017 | B86: 5 | C86: 43204384 | D86: =LOOKUP(A86,Data!B$23:B$2914,Data!G$23:G$2914) -> 43204320 | E86: 64 | F86: 2000 | G86: 1009 | H86: 85
A87: 1029 | B87: 6 | C87: 43714672 | D87: =LOOKUP(A87,Data!B$23:B$2914,Data!G$23:G$2914) -> 43714080 | E87: 592 | F87: 2000 | G87: 1021 | H87: 86
A88: 1041 | B88: 7 | C88: 44224960 | D88: =LOOKUP(A88,Data!B$23:B$2914,Data!G$23:G$2914) -> 44225280 | E88: -320 | F88: 2000 | G88: 1033 | H88: 87
A89: 1053 | B89: 8 | C89: 44735248 | D89: =LOOKUP(A89,Data!B$23:B$2914,Data!G$23:G$2914) -> 44735040 | E89: 208 | F89: 2000 | G89: 1045 | H89: 88
A90: 1065 | B90: 1 | C90: 45245536 | D90: =LOOKUP(A90,Data!B$23:B$2914,Data!G$23:G$2914) -> 45246240 | E90: -704 | F90: 2000 | G90: 1057 | H90: 89
A91: 1077 | B91: 2 | C91: 45755824 | D91: =LOOKUP(A91,Data!B$23:B$2914,Data!G$23:G$2914) -> 45756000 | E91: -176 | F91: 2000 | G91: 1069 | H91: 90
A92: 1089 | B92: 3 | C92: 46266112 | D92: =LOOKUP(A92,Data!B$23:B$2914,Data!G$23:G$2914) -> 46265760 | E92: 352 | F92: 2000 | G92: 1081 | H92: 91
A93: 1101 | B93: 4 | C93: 46776400 | D93: =LOOKUP(A93,Data!B$23:B$2914,Data!G$23:G$2914) -> 46776960 | E93: -560 | F93: 2000 | G93: 1093 | H93: 92
A94: 1113 | B94: 5 | C94: 47286688 | D94: =LOOKUP(A94,Data!B$23:B$2914,Data!G$23:G$2914) -> 47286720 | E94: -32 | F94: 2000 | G94: 1105 | H94: 93
A95: 1125 | B95: 6 | C95: 47796976 | D95: =LOOKUP(A95,Data!B$23:B$2914,Data!G$23:G$2914) -> 47796480 | E95: 496 | F95: 2000 | G95: 1117 | H95: 94
A96: 1137 | B96: 7 | C96: 48307264 | D96: =LOOKUP(A96,Data!B$23:B$2914,Data!G$23:G$2914) -> 48307680 | E96: -416 | F96: 2000 | G96: 1129 | H96: 95
A97: 1149 | B97: 8 | C97: 48817552 | D97: =LOOKUP(A97,Data!B$23:B$2914,Data!G$23:G$2914) -> 48817440 | E97: 112 | F97: 2000 | G97: 1141 | H97: 96
A98: 1161 | B98: 1 | C98: 49327840 | D98: =LOOKUP(A98,Data!B$23:B$2914,Data!G$23:G$2914) -> 49328640 | E98: -800 | F98: 2000 | G98: 1153 | H98: 97
A99: 1173 | B99: 2 | C99: 49838128 | D99: =LOOKUP(A99,Data!B$23:B$2914,Data!G$23:G$2914) -> 49838400 | E99: -272 | F99: 2000 | G99: 1165 | H99: 98
A100: 1185 | B100: 3 | C100: 50348416 | D100: =LOOKUP(A100,Data!B$23:B$2914,Data!G$23:G$2914) -> 50348160 | E100: 256 | F100: 2000 | G100: 1177 | H100: 99
A101: 1197 | B101: 4 | C101: 50858704 | D101: =LOOKUP(A101,Data!B$23:B$2914,Data!G$23:G$2914) -> 50859360 | E101: -656 | F101: 2000 | G101: 1189 | H101: 100
A102: 1209 | B102: 5 | C102: 51368992 | D102: =LOOKUP(A102,Data!B$23:B$2914,Data!G$23:G$2914) -> 51369120 | E102: -128 | F102: 2000 | G102: 1201 | H102: 101
A103: 1221 | B103: 6 | C103: 51879280 | D103: =LOOKUP(A103,Data!B$23:B$2914,Data!G$23:G$2914) -> 51878880 | E103: 400 | F103: 2000 | G103: 1213 | H103: 102
A104: 1233 | B104: 7 | C104: 52389568 | D104: =LOOKUP(A104,Data!B$23:B$2914,Data!G$23:G$2914) -> 52390080 | E104: -512 | F104: 2000 | G104: 1225 | H104: 103
A105: 1245 | B105: 8 | C105: 52899856 | D105: =LOOKUP(A105,Data!B$23:B$2914,Data!G$23:G$2914) -> 52899840 | E105: 16 | F105: 2000 | G105: 1237 | H105: 104
A106: 1257 | B106: 1 | C106: 53410144 | D106: =LOOKUP(A106,Data!B$23:B$2914,Data!G$23:G$2914) -> 53411040 | E106: -896 | F106: 2000 | G106: 1249 | H106: 105
A107: 1269 | B107: 2 | C107: 53920432 | D107: =LOOKUP(A107,Data!B$23:B$2914,Data!G$23:G$2914) -> 53920800 | E107: -368 | F107: 2000 | G107: 1261 | H107: 106
A108: 1281 | B108: 3 | C108: 54430720 | D108: =LOOKUP(A108,Data!B$23:B$2914,Data!G$23:G$2914) -> 54430560 | E108: 160 | F108: 2000 | G108: 1273 | H108: 107
A109: 1293 | B109: 4 | C109: 54941008 | D109: =LOOKUP(A109,Data!B$23:B$2914,Data!G$23:G$2914) -> 54941760 | E109: -752 | F109: 2000 | G109: 1285 | H109: 108
A110: 1305 | B110: 5 | C110: 55451296 | D110: =LOOKUP(A110,Data!B$23:B$2914,Data!G$23:G$2914) -> 55451520 | E110: -224 | F110: 2000 | G110: 1297 | H110: 109
A111: 1317 | B111: 6 | C111: 55961584 | D111: =LOOKUP(A111,Data!B$23:B$2914,Data!G$23:G$2914) -> 55961280 | E111: 304 | F111: 2000 | G111: 1309 | H111: 110
A112: 1329 | B112: 7 | C112: 56471872 | D112: =LOOKUP(A112,Data!B$23:B$2914,Data!G$23:G$2914) -> 56472480 | E112: -608 | F112: 2000 | G112: 1321 | H112: 111
A113: 1341 | B113: 8 | C113: 56982160 | D113: =LOOKUP(A113,Data!B$23:B$2914,Data!G$23:G$2914) -> 56982240 | E113: -80 | F113: 2000 | G113: 1333 | H113: 112
A114: 1353 | B114: 1 | C114: 57492448 | D114: =LOOKUP(A114,Data!B$23:B$2914,Data!G$23:G$2914) -> 57493440 | E114: -992 | F114: 2000 | G114: 1345 | H114: 113
A115: 1365 | B115: 2 | C115: 58002736 | D115: =LOOKUP(A115,Data!B$23:B$2914,Data!G$23:G$2914) -> 58003200 | E115: -464 | F115: 2000 | G115: 1357 | H115: 114
A116: 1377 | B116: 3 | C116: 58513024 | D116: =LOOKUP(A116,Data!B$23:B$2914,Data!G$23:G$2914) -> 58512960 | E116: 64 | F116: 2000 | G116: 1369 | H116: 115
A117: 1389 | B117: 4 | C117: 59023312 | D117: =LOOKUP(A117,Data!B$23:B$2914,Data!G$23:G$2914) -> 59024160 | E117: -848 | F117: 2000 | G117: 1381 | H117: 116
A118: 1401 | B118: 5 | C118: 59533600 | D118: =LOOKUP(A118,Data!B$23:B$2914,Data!G$23:G$2914) -> 59533920 | E118: -320 | F118: 2000 | G118: 1393 | H118: 117
A119: 1413 | B119: 6 | C119: 60043888 | D119: =LOOKUP(A119,Data!B$23:B$2914,Data!G$23:G$2914) -> 60043680 | E119: 208 | F119: 2000 | G119: 1405 | H119: 118
A120: 1425 | B120: 7 | C120: 60554176 | D120: =LOOKUP(A120,Data!B$23:B$2914,Data!G$23:G$2914) -> 60554880 | E120: -704 | F120: 2000 | G120: 1417 | H120: 119
A121: 1437 | B121: 8 | C121: 61064464 | D121: =LOOKUP(A121,Data!B$23:B$2914,Data!G$23:G$2914) -> 61064640 | E121: -176 | F121: 2000 | G121: 1429 | H121: 120
A122: 1449 | B122: 1 | C122: 61574752 | D122: =LOOKUP(A122,Data!B$23:B$2914,Data!G$23:G$2914) -> 61574400 | E122: 352 | F122: 2000 | G122: 1441 | H122: 121
A123: 1461 | B123: 2 | C123: 62085040 | D123: =LOOKUP(A123,Data!B$23:B$2914,Data!G$23:G$2914) -> 62084160 | E123: 880 | F123: 2000 | G123: 1453 | H123: 122
A124: 1473 | B124: 3 | C124: 62595328 | D124: =LOOKUP(A124,Data!B$23:B$2914,Data!G$23:G$2914) -> 62593920 | E124: 1408 | F124: 2000 | G124: 1465 | H124: 123
A125: 1485 | B125: 4 | C125: 63105616 | D125: =LOOKUP(A125,Data!B$23:B$2914,Data!G$23:G$2914) -> 63105120 | E125: 496 | F125: 2000 | G125: 1477 | H125: 124
A126: 1497 | B126: 5 | C126: 63615904 | D126: =LOOKUP(A126,Data!B$23:B$2914,Data!G$23:G$2914) -> 63614880 | E126: 1024 | F126: 2000 | G126: 1489 | H126: 125
A127: 1509 | B127: 6 | C127: 64126192 | D127: =LOOKUP(A127,Data!B$23:B$2914,Data!G$23:G$2914) -> 64124640 | E127: 1552 | F127: 2000 | G127: 1501 | H127: 126
A128: 1521 | B128: 7 | C128: 64636480 | D128: =LOOKUP(A128,Data!B$23:B$2914,Data!G$23:G$2914) -> 64635840 | E128: 640 | F128: 2000 | G128: 1513 | H128: 127
A129: 1533 | B129: 8 | C129: 65146768 | D129: =LOOKUP(A129,Data!B$23:B$2914,Data!G$23:G$2914) -> 65145600 | E129: 1168 | F129: 2000 | G129: 1525 | H129: 128
A130: 1545 | B130: 1 | C130: 65657056 | D130: =LOOKUP(A130,Data!B$23:B$2914,Data!G$23:G$2914) -> 65656800 | E130: 256 | F130: 2000 | G130: 1537 | H130: 129
A131: 1557 | B131: 2 | C131: 66167344 | D131: =LOOKUP(A131,Data!B$23:B$2914,Data!G$23:G$2914) -> 66166560 | E131: 784 | F131: 2000 | G131: 1549 | H131: 130
A132: =A131+12 -> 1569 | B132: =MOD(B131,8)+1 -> 3 | C132: =(A132-1)*PPM -> 66677632 | D132: =LOOKUP(A132,Data!B$23:B$2914,Data!G$23:G$2914) -> 66676320 | E132: =C132-D132 -> 1312 | F132: =F131 -> 2000 | G132: =A132-StartMonth+1 -> 1561 | H132: =H131+1 -> 131
A133: 1581 | B133: 4 | C133: 67187920 | D133: =LOOKUP(A133,Data!B$23:B$2914,Data!G$23:G$2914) -> 67187520 | E133: 400 | F133: 2000 | G133: 1573 | H133: 132
A134: 1593 | B134: 5 | C134: 67698208 | D134: =LOOKUP(A134,Data!B$23:B$2914,Data!G$23:G$2914) -> 67697280 | E134: 928 | F134: 2000 | G134: 1585 | H134: 133
A135: 1605 | B135: 6 | C135: 68208496 | D135: =LOOKUP(A135,Data!B$23:B$2914,Data!G$23:G$2914) -> 68207040 | E135: 1456 | F135: 2000 | G135: 1597 | H135: 134
A136: 1617 | B136: 7 | C136: 68718784 | D136: =LOOKUP(A136,Data!B$23:B$2914,Data!G$23:G$2914) -> 68718240 | E136: 544 | F136: 2000 | G136: 1609 | H136: 135
A137: 1629 | B137: 8 | C137: 69229072 | D137: =LOOKUP(A137,Data!B$23:B$2914,Data!G$23:G$2914) -> 69228000 | E137: 1072 | F137: 2000 | G137: 1621 | H137: 136
A138: 1641 | B138: 1 | C138: 69739360 | D138: =LOOKUP(A138,Data!B$23:B$2914,Data!G$23:G$2914) -> 69739200 | E138: 160 | F138: 2000 | G138: 1633 | H138: 137
A139: 1653 | B139: 2 | C139: 70249648 | D139: =LOOKUP(A139,Data!B$23:B$2914,Data!G$23:G$2914) -> 70248960 | E139: 688 | F139: 2000 | G139: 1645 | H139: 138
A140: 1665 | B140: 3 | C140: 70759936 | D140: =LOOKUP(A140,Data!B$23:B$2914,Data!G$23:G$2914) -> 70758720 | E140: 1216 | F140: 2000 | G140: 1657 | H140: 139
A141: 1677 | B141: 4 | C141: 71270224 | D141: =LOOKUP(A141,Data!B$23:B$2914,Data!G$23:G$2914) -> 71269920 | E141: 304 | F141: 2000 | G141: 1669 | H141: 140
A142: 1689 | B142: 5 | C142: 71780512 | D142: =LOOKUP(A142,Data!B$23:B$2914,Data!G$23:G$2914) -> 71779680 | E142: 832 | F142: 2000 | G142: 1681 | H142: 141
A143: 1701 | B143: 6 | C143: 72290800 | D143: =LOOKUP(A143,Data!B$23:B$2914,Data!G$23:G$2914) -> 72289440 | E143: 1360 | F143: 2000 | G143: 1693 | H143: 142
A144: 1713 | B144: 7 | C144: 72801088 | D144: =LOOKUP(A144,Data!B$23:B$2914,Data!G$23:G$2914) -> 72800640 | E144: 448 | F144: 2000 | G144: 1705 | H144: 143
A145: 1725 | B145: 8 | C145: 73311376 | D145: =LOOKUP(A145,Data!B$23:B$2914,Data!G$23:G$2914) -> 73310400 | E145: 976 | F145: 2000 | G145: 1717 | H145: 144
A146: 1737 | B146: 1 | C146: 73821664 | D146: =LOOKUP(A146,Data!B$23:B$2914,Data!G$23:G$2914) -> 73821600 | E146: 64 | F146: 2000 | G146: 1729 | H146: 145
A147: 1749 | B147: 2 | C147: 74331952 | D147: =LOOKUP(A147,Data!B$23:B$2914,Data!G$23:G$2914) -> 74331360 | E147: 592 | F147: 2000 | G147: 1741 | H147: 146
A148: 1761 | B148: 3 | C148: 74842240 | D148: =LOOKUP(A148,Data!B$23:B$2914,Data!G$23:G$2914) -> 74841120 | E148: 1120 | F148: 2000 | G148: 1753 | H148: 147
A149: 1773 | B149: 4 | C149: 75352528 | D149: =LOOKUP(A149,Data!B$23:B$2914,Data!G$23:G$2914) -> 75352320 | E149: 208 | F149: 2000 | G149: 1765 | H149: 148
A150: 1785 | B150: 5 | C150: 75862816 | D150: =LOOKUP(A150,Data!B$23:B$2914,Data!G$23:G$2914) -> 75862080 | E150: 736 | F150: 2000 | G150: 1777 | H150: 149
A151: 1797 | B151: 6 | C151: 76373104 | D151: =LOOKUP(A151,Data!B$23:B$2914,Data!G$23:G$2914) -> 76371840 | E151: 1264 | F151: 2000 | G151: 1789 | H151: 150
A152: 1809 | B152: 7 | C152: 76883392 | D152: =LOOKUP(A152,Data!B$23:B$2914,Data!G$23:G$2914) -> 76883040 | E152: 352 | F152: 2000 | G152: 1801 | H152: 151
A153: 1821 | B153: 8 | C153: 77393680 | D153: =LOOKUP(A153,Data!B$23:B$2914,Data!G$23:G$2914) -> 77392800 | E153: 880 | F153: 2000 | G153: 1813 | H153: 152
A154: 1833 | B154: 1 | C154: 77903968 | D154: =LOOKUP(A154,Data!B$23:B$2914,Data!G$23:G$2914) -> 77904000 | E154: -32 | F154: 2000 | G154: 1825 | H154: 153
A155: 1845 | B155: 2 | C155: 78414256 | D155: =LOOKUP(A155,Data!B$23:B$2914,Data!G$23:G$2914) -> 78413760 | E155: 496 | F155: 2000 | G155: 1837 | H155: 154
A156: 1857 | B156: 3 | C156: 78924544 | D156: =LOOKUP(A156,Data!B$23:B$2914,Data!G$23:G$2914) -> 78923520 | E156: 1024 | F156: 2000 | G156: 1849 | H156: 155
A157: 1869 | B157: 4 | C157: 79434832 | D157: =LOOKUP(A157,Data!B$23:B$2914,Data!G$23:G$2914) -> 79434720 | E157: 112 | F157: 2000 | G157: 1861 | H157: 156
A158: 1881 | B158: 5 | C158: 79945120 | D158: =LOOKUP(A158,Data!B$23:B$2914,Data!G$23:G$2914) -> 79944480 | E158: 640 | F158: 2000 | G158: 1873 | H158: 157
A159: 1893 | B159: 6 | C159: 80455408 | D159: =LOOKUP(A159,Data!B$23:B$2914,Data!G$23:G$2914) -> 80454240 | E159: 1168 | F159: 2000 | G159: 1885 | H159: 158
A160: 1905 | B160: 7 | C160: 80965696 | D160: =LOOKUP(A160,Data!B$23:B$2914,Data!G$23:G$2914) -> 80965440 | E160: 256 | F160: 2000 | G160: 1897 | H160: 159
A161: 1917 | B161: 8 | C161: 81475984 | D161: =LOOKUP(A161,Data!B$23:B$2914,Data!G$23:G$2914) -> 81475200 | E161: 784 | F161: 2000 | G161: 1909 | H161: 160
A162: 1929 | B162: 1 | C162: 81986272 | D162: =LOOKUP(A162,Data!B$23:B$2914,Data!G$23:G$2914) -> 81986400 | E162: -128 | F162: 2000 | G162: 1921 | H162: 161
A163: 1941 | B163: 2 | C163: 82496560 | D163: =LOOKUP(A163,Data!B$23:B$2914,Data!G$23:G$2914) -> 82496160 | E163: 400 | F163: 2000 | G163: 1933 | H163: 162
A164: 1953 | B164: 3 | C164: 83006848 | D164: =LOOKUP(A164,Data!B$23:B$2914,Data!G$23:G$2914) -> 83005920 | E164: 928 | F164: 2000 | G164: 1945 | H164: 163
A165: 1965 | B165: 4 | C165: 83517136 | D165: =LOOKUP(A165,Data!B$23:B$2914,Data!G$23:G$2914) -> 83517120 | E165: 16 | F165: 2000 | G165: 1957 | H165: 164
A166: 1977 | B166: 5 | C166: 84027424 | D166: =LOOKUP(A166,Data!B$23:B$2914,Data!G$23:G$2914) -> 84026880 | E166: 544 | F166: 2000 | G166: 1969 | H166: 165
A167: 1989 | B167: 6 | C167: 84537712 | D167: =LOOKUP(A167,Data!B$23:B$2914,Data!G$23:G$2914) -> 84536640 | E167: 1072 | F167: 2000 | G167: 1981 | H167: 166
A168: 2001 | B168: 7 | C168: 85048000 | D168: =LOOKUP(A168,Data!B$23:B$2914,Data!G$23:G$2914) -> 85047840 | E168: 160 | F168: 2000 | G168: 1993 | H168: 167
A169: 2013 | B169: 8 | C169: 85558288 | D169: =LOOKUP(A169,Data!B$23:B$2914,Data!G$23:G$2914) -> 85557600 | E169: 688 | F169: 2000 | G169: 2005 | H169: 168
A170: 2025 | B170: 1 | C170: 86068576 | D170: =LOOKUP(A170,Data!B$23:B$2914,Data!G$23:G$2914) -> 86068800 | E170: -224 | F170: 2000 | G170: 2017 | H170: 169
A171: 2037 | B171: 2 | C171: 86578864 | D171: =LOOKUP(A171,Data!B$23:B$2914,Data!G$23:G$2914) -> 86578560 | E171: 304 | F171: 2000 | G171: 2029 | H171: 170
A172: 2049 | B172: 3 | C172: 87089152 | D172: =LOOKUP(A172,Data!B$23:B$2914,Data!G$23:G$2914) -> 87088320 | E172: 832 | F172: 2000 | G172: 2041 | H172: 171
A173: 2061 | B173: 4 | C173: 87599440 | D173: =LOOKUP(A173,Data!B$23:B$2914,Data!G$23:G$2914) -> 87599520 | E173: -80 | F173: 2000 | G173: 2053 | H173: 172
A174: 2073 | B174: 5 | C174: 88109728 | D174: =LOOKUP(A174,Data!B$23:B$2914,Data!G$23:G$2914) -> 88109280 | E174: 448 | F174: 2000 | G174: 2065 | H174: 173
A175: 2085 | B175: 6 | C175: 88620016 | D175: =LOOKUP(A175,Data!B$23:B$2914,Data!G$23:G$2914) -> 88619040 | E175: 976 | F175: 2000 | G175: 2077 | H175: 174
A176: 2097 | B176: 7 | C176: 89130304 | D176: =LOOKUP(A176,Data!B$23:B$2914,Data!G$23:G$2914) -> 89130240 | E176: 64 | F176: 2000 | G176: 2089 | H176: 175
A177: 2109 | B177: 8 | C177: 89640592 | D177: =LOOKUP(A177,Data!B$23:B$2914,Data!G$23:G$2914) -> 89640000 | E177: 592 | F177: 2000 | G177: 2101 | H177: 176
A178: 2121 | B178: 1 | C178: 90150880 | D178: =LOOKUP(A178,Data!B$23:B$2914,Data!G$23:G$2914) -> 90151200 | E178: -320 | F178: 2000 | G178: 2113 | H178: 177
A179: 2133 | B179: 2 | C179: 90661168 | D179: =LOOKUP(A179,Data!B$23:B$2914,Data!G$23:G$2914) -> 90660960 | E179: 208 | F179: 2000 | G179: 2125 | H179: 178
A180: 2145 | B180: 3 | C180: 91171456 | D180: =LOOKUP(A180,Data!B$23:B$2914,Data!G$23:G$2914) -> 91170720 | E180: 736 | F180: 2000 | G180: 2137 | H180: 179
A181: 2157 | B181: 4 | C181: 91681744 | D181: =LOOKUP(A181,Data!B$23:B$2914,Data!G$23:G$2914) -> 91681920 | E181: -176 | F181: 2000 | G181: 2149 | H181: 180
A182: 2169 | B182: 5 | C182: 92192032 | D182: =LOOKUP(A182,Data!B$23:B$2914,Data!G$23:G$2914) -> 92191680 | E182: 352 | F182: 2000 | G182: 2161 | H182: 181
A183: 2181 | B183: 6 | C183: 92702320 | D183: =LOOKUP(A183,Data!B$23:B$2914,Data!G$23:G$2914) -> 92701440 | E183: 880 | F183: 2000 | G183: 2173 | H183: 182
A184: 2193 | B184: 7 | C184: 93212608 | D184: =LOOKUP(A184,Data!B$23:B$2914,Data!G$23:G$2914) -> 93212640 | E184: -32 | F184: 2000 | G184: 2185 | H184: 183
A185: 2205 | B185: 8 | C185: 93722896 | D185: =LOOKUP(A185,Data!B$23:B$2914,Data!G$23:G$2914) -> 93722400 | E185: 496 | F185: 2000 | G185: 2197 | H185: 184
A186: 2217 | B186: 1 | C186: 94233184 | D186: =LOOKUP(A186,Data!B$23:B$2914,Data!G$23:G$2914) -> 94233600 | E186: -416 | F186: 2000 | G186: 2209 | H186: 185
A187: 2229 | B187: 2 | C187: 94743472 | D187: =LOOKUP(A187,Data!B$23:B$2914,Data!G$23:G$2914) -> 94743360 | E187: 112 | F187: 2000 | G187: 2221 | H187: 186
A188: 2241 | B188: 3 | C188: 95253760 | D188: =LOOKUP(A188,Data!B$23:B$2914,Data!G$23:G$2914) -> 95253120 | E188: 640 | F188: 2000 | G188: 2233 | H188: 187
A189: 2253 | B189: 4 | C189: 95764048 | D189: =LOOKUP(A189,Data!B$23:B$2914,Data!G$23:G$2914) -> 95764320 | E189: -272 | F189: 2000 | G189: 2245 | H189: 188
A190: 2265 | B190: 5 | C190: 96274336 | D190: =LOOKUP(A190,Data!B$23:B$2914,Data!G$23:G$2914) -> 96274080 | E190: 256 | F190: 2000 | G190: 2257 | H190: 189
A191: 2277 | B191: 6 | C191: 96784624 | D191: =LOOKUP(A191,Data!B$23:B$2914,Data!G$23:G$2914) -> 96783840 | E191: 784 | F191: 2000 | G191: 2269 | H191: 190
A192: 2289 | B192: 7 | C192: 97294912 | D192: =LOOKUP(A192,Data!B$23:B$2914,Data!G$23:G$2914) -> 97295040 | E192: -128 | F192: 2000 | G192: 2281 | H192: 191
A193: 2301 | B193: 8 | C193: 97805200 | D193: =LOOKUP(A193,Data!B$23:B$2914,Data!G$23:G$2914) -> 97804800 | E193: 400 | F193: 2000 | G193: 2293 | H193: 192
A194: 2313 | B194: 1 | C194: 98315488 | D194: =LOOKUP(A194,Data!B$23:B$2914,Data!G$23:G$2914) -> 98316000 | E194: -512 | F194: 2000 | G194: 2305 | H194: 193
A195: 2325 | B195: 2 | C195: 98825776 | D195: =LOOKUP(A195,Data!B$23:B$2914,Data!G$23:G$2914) -> 98825760 | E195: 16 | F195: 2000 | G195: 2317 | H195: 194
A196: =A195+12 -> 2337 | B196: =MOD(B195,8)+1 -> 3 | C196: =(A196-1)*PPM -> 99336064 | D196: =LOOKUP(A196,Data!B$23:B$2914,Data!G$23:G$2914) -> 99335520 | E196: =C196-D196 -> 544 | F196: =F195 -> 2000 | G196: =A196-StartMonth+1 -> 2329 | H196: =H195+1 -> 195
A197: 2349 | B197: 4 | C197: 99846352 | D197: =LOOKUP(A197,Data!B$23:B$2914,Data!G$23:G$2914) -> 99846720 | E197: -368 | F197: 2000 | G197: 2341 | H197: 196
A198: 2361 | B198: 5 | C198: 100356640 | D198: =LOOKUP(A198,Data!B$23:B$2914,Data!G$23:G$2914) -> 100356480 | E198: 160 | F198: 2000 | G198: 2353 | H198: 197
A199: 2373 | B199: 6 | C199: 100866928 | D199: =LOOKUP(A199,Data!B$23:B$2914,Data!G$23:G$2914) -> 100866240 | E199: 688 | F199: 2000 | G199: 2365 | H199: 198
A200: 2385 | B200: 7 | C200: 101377216 | D200: =LOOKUP(A200,Data!B$23:B$2914,Data!G$23:G$2914) -> 101377440 | E200: -224 | F200: 2000 | G200: 2377 | H200: 199
... 42 more rows

Sheet Years2
A1: Month in Cycle | B1: Year | C1: New Year Moment | D1: Elapsed | E1: Difference | F1: Top | G1: Year Start | H1: Year
A2: =StartMonth2 -> 6 | B2: 1 | C2: =(A2-1)*PPM -> 212620 | D2: =LOOKUP(A2,Data!B$23:B$2914,Data!G$23:G$2914) -> 213120 | E2: =C2-D2 -> -500 | F2: 2000 | G2: =A2-StartMonth+1 -> -2 | H2: 1
A3: =A2+12 -> 18 | B3: =MOD(B2,8)+1 -> 2 | C3: 722908 | D3: =LOOKUP(A3,Data!B$23:B$2914,Data!G$23:G$2914) -> 722880 | E3: 28 | F3: =F2 -> 2000 | G3: 10 | H3: =H2+1 -> 2
A4: 30 | B4: 3 | C4: 1233196 | D4: =LOOKUP(A4,Data!B$23:B$2914,Data!G$23:G$2914) -> 1232640 | E4: 556 | F4: 2000 | G4: 22 | H4: 3
A5: 42 | B5: 4 | C5: 1743484 | D5: =LOOKUP(A5,Data!B$23:B$2914,Data!G$23:G$2914) -> 1743840 | E5: -356 | F5: 2000 | G5: 34 | H5: 4
A6: 54 | B6: 5 | C6: 2253772 | D6: =LOOKUP(A6,Data!B$23:B$2914,Data!G$23:G$2914) -> 2253600 | E6: 172 | F6: 2000 | G6: 46 | H6: 5
A7: 66 | B7: 6 | C7: 2764060 | D7: =LOOKUP(A7,Data!B$23:B$2914,Data!G$23:G$2914) -> 2763360 | E7: 700 | F7: 2000 | G7: 58 | H7: 6
A8: 78 | B8: 7 | C8: 3274348 | D8: =LOOKUP(A8,Data!B$23:B$2914,Data!G$23:G$2914) -> 3274560 | E8: -212 | F8: 2000 | G8: 70 | H8: 7
A9: 90 | B9: 8 | C9: 3784636 | D9: =LOOKUP(A9,Data!B$23:B$2914,Data!G$23:G$2914) -> 3784320 | E9: 316 | F9: 2000 | G9: 82 | H9: 8
A10: 102 | B10: 1 | C10: 4294924 | D10: =LOOKUP(A10,Data!B$23:B$2914,Data!G$23:G$2914) -> 4295520 | E10: -596 | F10: 2000 | G10: 94 | H10: 9
A11: 114 | B11: 2 | C11: 4805212 | D11: =LOOKUP(A11,Data!B$23:B$2914,Data!G$23:G$2914) -> 4805280 | E11: -68 | F11: 2000 | G11: 106 | H11: 10
A12: 126 | B12: 3 | C12: 5315500 | D12: =LOOKUP(A12,Data!B$23:B$2914,Data!G$23:G$2914) -> 5315040 | E12: 460 | F12: 2000 | G12: 118 | H12: 11
A13: 138 | B13: 4 | C13: 5825788 | D13: =LOOKUP(A13,Data!B$23:B$2914,Data!G$23:G$2914) -> 5826240 | E13: -452 | F13: 2000 | G13: 130 | H13: 12
A14: 150 | B14: 5 | C14: 6336076 | D14: =LOOKUP(A14,Data!B$23:B$2914,Data!G$23:G$2914) -> 6336000 | E14: 76 | F14: 2000 | G14: 142 | H14: 13
A15: 162 | B15: 6 | C15: 6846364 | D15: =LOOKUP(A15,Data!B$23:B$2914,Data!G$23:G$2914) -> 6845760 | E15: 604 | F15: 2000 | G15: 154 | H15: 14
A16: 174 | B16: 7 | C16: 7356652 | D16: =LOOKUP(A16,Data!B$23:B$2914,Data!G$23:G$2914) -> 7356960 | E16: -308 | F16: 2000 | G16: 166 | H16: 15
A17: 186 | B17: 8 | C17: 7866940 | D17: =LOOKUP(A17,Data!B$23:B$2914,Data!G$23:G$2914) -> 7866720 | E17: 220 | F17: 2000 | G17: 178 | H17: 16
A18: 198 | B18: 1 | C18: 8377228 | D18: =LOOKUP(A18,Data!B$23:B$2914,Data!G$23:G$2914) -> 8377920 | E18: -692 | F18: 2000 | G18: 190 | H18: 17
A19: 210 | B19: 2 | C19: 8887516 | D19: =LOOKUP(A19,Data!B$23:B$2914,Data!G$23:G$2914) -> 8887680 | E19: -164 | F19: 2000 | G19: 202 | H19: 18
A20: 222 | B20: 3 | C20: 9397804 | D20: =LOOKUP(A20,Data!B$23:B$2914,Data!G$23:G$2914) -> 9397440 | E20: 364 | F20: 2000 | G20: 214 | H20: 19
A21: 234 | B21: 4 | C21: 9908092 | D21: =LOOKUP(A21,Data!B$23:B$2914,Data!G$23:G$2914) -> 9908640 | E21: -548 | F21: 2000 | G21: 226 | H21: 20
A22: 246 | B22: 5 | C22: 10418380 | D22: =LOOKUP(A22,Data!B$23:B$2914,Data!G$23:G$2914) -> 10418400 | E22: -20 | F22: 2000 | G22: 238 | H22: 21
A23: 258 | B23: 6 | C23: 10928668 | D23: =LOOKUP(A23,Data!B$23:B$2914,Data!G$23:G$2914) -> 10928160 | E23: 508 | F23: 2000 | G23: 250 | H23: 22
A24: 270 | B24: 7 | C24: 11438956 | D24: =LOOKUP(A24,Data!B$23:B$2914,Data!G$23:G$2914) -> 11439360 | E24: -404 | F24: 2000 | G24: 262 | H24: 23
A25: 282 | B25: 8 | C25: 11949244 | D25: =LOOKUP(A25,Data!B$23:B$2914,Data!G$23:G$2914) -> 11949120 | E25: 124 | F25: 2000 | G25: 274 | H25: 24
A26: 294 | B26: 1 | C26: 12459532 | D26: =LOOKUP(A26,Data!B$23:B$2914,Data!G$23:G$2914) -> 12460320 | E26: -788 | F26: 2000 | G26: 286 | H26: 25
A27: 306 | B27: 2 | C27: 12969820 | D27: =LOOKUP(A27,Data!B$23:B$2914,Data!G$23:G$2914) -> 12970080 | E27: -260 | F27: 2000 | G27: 298 | H27: 26
A28: 318 | B28: 3 | C28: 13480108 | D28: =LOOKUP(A28,Data!B$23:B$2914,Data!G$23:G$2914) -> 13479840 | E28: 268 | F28: 2000 | G28: 310 | H28: 27
A29: 330 | B29: 4 | C29: 13990396 | D29: =LOOKUP(A29,Data!B$23:B$2914,Data!G$23:G$2914) -> 13991040 | E29: -644 | F29: 2000 | G29: 322 | H29: 28
A30: 342 | B30: 5 | C30: 14500684 | D30: =LOOKUP(A30,Data!B$23:B$2914,Data!G$23:G$2914) -> 14500800 | E30: -116 | F30: 2000 | G30: 334 | H30: 29
A31: 354 | B31: 6 | C31: 15010972 | D31: =LOOKUP(A31,Data!B$23:B$2914,Data!G$23:G$2914) -> 15010560 | E31: 412 | F31: 2000 | G31: 346 | H31: 30
A32: 366 | B32: 7 | C32: 15521260 | D32: =LOOKUP(A32,Data!B$23:B$2914,Data!G$23:G$2914) -> 15521760 | E32: -500 | F32: 2000 | G32: 358 | H32: 31
A33: 378 | B33: 8 | C33: 16031548 | D33: =LOOKUP(A33,Data!B$23:B$2914,Data!G$23:G$2914) -> 16031520 | E33: 28 | F33: 2000 | G33: 370 | H33: 32
A34: 390 | B34: 1 | C34: 16541836 | D34: =LOOKUP(A34,Data!B$23:B$2914,Data!G$23:G$2914) -> 16542720 | E34: -884 | F34: 2000 | G34: 382 | H34: 33
A35: 402 | B35: 2 | C35: 17052124 | D35: =LOOKUP(A35,Data!B$23:B$2914,Data!G$23:G$2914) -> 17052480 | E35: -356 | F35: 2000 | G35: 394 | H35: 34
A36: 414 | B36: 3 | C36: 17562412 | D36: =LOOKUP(A36,Data!B$23:B$2914,Data!G$23:G$2914) -> 17562240 | E36: 172 | F36: 2000 | G36: 406 | H36: 35
A37: 426 | B37: 4 | C37: 18072700 | D37: =LOOKUP(A37,Data!B$23:B$2914,Data!G$23:G$2914) -> 18073440 | E37: -740 | F37: 2000 | G37: 418 | H37: 36
A38: 438 | B38: 5 | C38: 18582988 | D38: =LOOKUP(A38,Data!B$23:B$2914,Data!G$23:G$2914) -> 18583200 | E38: -212 | F38: 2000 | G38: 430 | H38: 37
A39: 450 | B39: 6 | C39: 19093276 | D39: =LOOKUP(A39,Data!B$23:B$2914,Data!G$23:G$2914) -> 19092960 | E39: 316 | F39: 2000 | G39: 442 | H39: 38
A40: 462 | B40: 7 | C40: 19603564 | D40: =LOOKUP(A40,Data!B$23:B$2914,Data!G$23:G$2914) -> 19604160 | E40: -596 | F40: 2000 | G40: 454 | H40: 39
A41: 474 | B41: 8 | C41: 20113852 | D41: =LOOKUP(A41,Data!B$23:B$2914,Data!G$23:G$2914) -> 20113920 | E41: -68 | F41: 2000 | G41: 466 | H41: 40
A42: 486 | B42: 1 | C42: 20624140 | D42: =LOOKUP(A42,Data!B$23:B$2914,Data!G$23:G$2914) -> 20625120 | E42: -980 | F42: 2000 | G42: 478 | H42: 41
A43: 498 | B43: 2 | C43: 21134428 | D43: =LOOKUP(A43,Data!B$23:B$2914,Data!G$23:G$2914) -> 21134880 | E43: -452 | F43: 2000 | G43: 490 | H43: 42
A44: 510 | B44: 3 | C44: 21644716 | D44: =LOOKUP(A44,Data!B$23:B$2914,Data!G$23:G$2914) -> 21644640 | E44: 76 | F44: 2000 | G44: 502 | H44: 43
A45: 522 | B45: 4 | C45: 22155004 | D45: =LOOKUP(A45,Data!B$23:B$2914,Data!G$23:G$2914) -> 22155840 | E45: -836 | F45: 2000 | G45: 514 | H45: 44
A46: 534 | B46: 5 | C46: 22665292 | D46: =LOOKUP(A46,Data!B$23:B$2914,Data!G$23:G$2914) -> 22665600 | E46: -308 | F46: 2000 | G46: 526 | H46: 45
A47: 546 | B47: 6 | C47: 23175580 | D47: =LOOKUP(A47,Data!B$23:B$2914,Data!G$23:G$2914) -> 23175360 | E47: 220 | F47: 2000 | G47: 538 | H47: 46
A48: 558 | B48: 7 | C48: 23685868 | D48: =LOOKUP(A48,Data!B$23:B$2914,Data!G$23:G$2914) -> 23686560 | E48: -692 | F48: 2000 | G48: 550 | H48: 47
A49: 570 | B49: 8 | C49: 24196156 | D49: =LOOKUP(A49,Data!B$23:B$2914,Data!G$23:G$2914) -> 24196320 | E49: -164 | F49: 2000 | G49: 562 | H49: 48
A50: 582 | B50: 1 | C50: 24706444 | D50: =LOOKUP(A50,Data!B$23:B$2914,Data!G$23:G$2914) -> 24707520 | E50: -1076 | F50: 2000 | G50: 574 | H50: 49
A51: 594 | B51: 2 | C51: 25216732 | D51: =LOOKUP(A51,Data!B$23:B$2914,Data!G$23:G$2914) -> 25217280 | E51: -548 | F51: 2000 | G51: 586 | H51: 50
A52: 606 | B52: 3 | C52: 25727020 | D52: =LOOKUP(A52,Data!B$23:B$2914,Data!G$23:G$2914) -> 25727040 | E52: -20 | F52: 2000 | G52: 598 | H52: 51
A53: 618 | B53: 4 | C53: 26237308 | D53: =LOOKUP(A53,Data!B$23:B$2914,Data!G$23:G$2914) -> 26238240 | E53: -932 | F53: 2000 | G53: 610 | H53: 52
A54: 630 | B54: 5 | C54: 26747596 | D54: =LOOKUP(A54,Data!B$23:B$2914,Data!G$23:G$2914) -> 26748000 | E54: -404 | F54: 2000 | G54: 622 | H54: 53
A55: 642 | B55: 6 | C55: 27257884 | D55: =LOOKUP(A55,Data!B$23:B$2914,Data!G$23:G$2914) -> 27257760 | E55: 124 | F55: 2000 | G55: 634 | H55: 54
A56: 654 | B56: 7 | C56: 27768172 | D56: =LOOKUP(A56,Data!B$23:B$2914,Data!G$23:G$2914) -> 27768960 | E56: -788 | F56: 2000 | G56: 646 | H56: 55
A57: 666 | B57: 8 | C57: 28278460 | D57: =LOOKUP(A57,Data!B$23:B$2914,Data!G$23:G$2914) -> 28278720 | E57: -260 | F57: 2000 | G57: 658 | H57: 56
A58: 678 | B58: 1 | C58: 28788748 | D58: =LOOKUP(A58,Data!B$23:B$2914,Data!G$23:G$2914) -> 28789920 | E58: -1172 | F58: 2000 | G58: 670 | H58: 57
A59: 690 | B59: 2 | C59: 29299036 | D59: =LOOKUP(A59,Data!B$23:B$2914,Data!G$23:G$2914) -> 29299680 | E59: -644 | F59: 2000 | G59: 682 | H59: 58
A60: 702 | B60: 3 | C60: 29809324 | D60: =LOOKUP(A60,Data!B$23:B$2914,Data!G$23:G$2914) -> 29809440 | E60: -116 | F60: 2000 | G60: 694 | H60: 59
A61: 714 | B61: 4 | C61: 30319612 | D61: =LOOKUP(A61,Data!B$23:B$2914,Data!G$23:G$2914) -> 30320640 | E61: -1028 | F61: 2000 | G61: 706 | H61: 60
A62: 726 | B62: 5 | C62: 30829900 | D62: =LOOKUP(A62,Data!B$23:B$2914,Data!G$23:G$2914) -> 30830400 | E62: -500 | F62: 2000 | G62: 718 | H62: 61
A63: 738 | B63: 6 | C63: 31340188 | D63: =LOOKUP(A63,Data!B$23:B$2914,Data!G$23:G$2914) -> 31340160 | E63: 28 | F63: 2000 | G63: 730 | H63: 62
A64: 750 | B64: 7 | C64: 31850476 | D64: =LOOKUP(A64,Data!B$23:B$2914,Data!G$23:G$2914) -> 31851360 | E64: -884 | F64: 2000 | G64: 742 | H64: 63
A65: 762 | B65: 8 | C65: 32360764 | D65: =LOOKUP(A65,Data!B$23:B$2914,Data!G$23:G$2914) -> 32361120 | E65: -356 | F65: 2000 | G65: 754 | H65: 64
A66: 774 | B66: 1 | C66: =(A66-1)*PPM -> 32871052 | D66: =LOOKUP(A66,Data!B$23:B$2914,Data!G$23:G$2914) -> 32872320 | E66: =C66-D66 -> -1268 | F66: 2000 | G66: =A66-StartMonth+1 -> 766 | H66: 65
A67: =A66+12 -> 786 | B67: =MOD(B66,8)+1 -> 2 | C67: 33381340 | D67: =LOOKUP(A67,Data!B$23:B$2914,Data!G$23:G$2914) -> 33382080 | E67: -740 | F67: =F66 -> 2000 | G67: 778 | H67: =H66+1 -> 66
A68: 798 | B68: 3 | C68: 33891628 | D68: =LOOKUP(A68,Data!B$23:B$2914,Data!G$23:G$2914) -> 33891840 | E68: -212 | F68: 2000 | G68: 790 | H68: 67
A69: 810 | B69: 4 | C69: 34401916 | D69: =LOOKUP(A69,Data!B$23:B$2914,Data!G$23:G$2914) -> 34403040 | E69: -1124 | F69: 2000 | G69: 802 | H69: 68
A70: 822 | B70: 5 | C70: 34912204 | D70: =LOOKUP(A70,Data!B$23:B$2914,Data!G$23:G$2914) -> 34912800 | E70: -596 | F70: 2000 | G70: 814 | H70: 69
A71: 834 | B71: 6 | C71: 35422492 | D71: =LOOKUP(A71,Data!B$23:B$2914,Data!G$23:G$2914) -> 35422560 | E71: -68 | F71: 2000 | G71: 826 | H71: 70
A72: 846 | B72: 7 | C72: 35932780 | D72: =LOOKUP(A72,Data!B$23:B$2914,Data!G$23:G$2914) -> 35933760 | E72: -980 | F72: 2000 | G72: 838 | H72: 71
A73: 858 | B73: 8 | C73: 36443068 | D73: =LOOKUP(A73,Data!B$23:B$2914,Data!G$23:G$2914) -> 36443520 | E73: -452 | F73: 2000 | G73: 850 | H73: 72
A74: 870 | B74: 1 | C74: 36953356 | D74: =LOOKUP(A74,Data!B$23:B$2914,Data!G$23:G$2914) -> 36954720 | E74: -1364 | F74: 2000 | G74: 862 | H74: 73
A75: 882 | B75: 2 | C75: 37463644 | D75: =LOOKUP(A75,Data!B$23:B$2914,Data!G$23:G$2914) -> 37464480 | E75: -836 | F75: 2000 | G75: 874 | H75: 74
A76: 894 | B76: 3 | C76: 37973932 | D76: =LOOKUP(A76,Data!B$23:B$2914,Data!G$23:G$2914) -> 37974240 | E76: -308 | F76: 2000 | G76: 886 | H76: 75
A77: 906 | B77: 4 | C77: 38484220 | D77: =LOOKUP(A77,Data!B$23:B$2914,Data!G$23:G$2914) -> 38485440 | E77: -1220 | F77: 2000 | G77: 898 | H77: 76
A78: 918 | B78: 5 | C78: 38994508 | D78: =LOOKUP(A78,Data!B$23:B$2914,Data!G$23:G$2914) -> 38995200 | E78: -692 | F78: 2000 | G78: 910 | H78: 77
A79: 930 | B79: 6 | C79: 39504796 | D79: =LOOKUP(A79,Data!B$23:B$2914,Data!G$23:G$2914) -> 39504960 | E79: -164 | F79: 2000 | G79: 922 | H79: 78
A80: 942 | B80: 7 | C80: 40015084 | D80: =LOOKUP(A80,Data!B$23:B$2914,Data!G$23:G$2914) -> 40016160 | E80: -1076 | F80: 2000 | G80: 934 | H80: 79
A81: 954 | B81: 8 | C81: 40525372 | D81: =LOOKUP(A81,Data!B$23:B$2914,Data!G$23:G$2914) -> 40525920 | E81: -548 | F81: 2000 | G81: 946 | H81: 80
A82: 966 | B82: 1 | C82: 41035660 | D82: =LOOKUP(A82,Data!B$23:B$2914,Data!G$23:G$2914) -> 41037120 | E82: -1460 | F82: 2000 | G82: 958 | H82: 81
A83: 978 | B83: 2 | C83: 41545948 | D83: =LOOKUP(A83,Data!B$23:B$2914,Data!G$23:G$2914) -> 41546880 | E83: -932 | F83: 2000 | G83: 970 | H83: 82
A84: 990 | B84: 3 | C84: 42056236 | D84: =LOOKUP(A84,Data!B$23:B$2914,Data!G$23:G$2914) -> 42056640 | E84: -404 | F84: 2000 | G84: 982 | H84: 83
A85: 1002 | B85: 4 | C85: 42566524 | D85: =LOOKUP(A85,Data!B$23:B$2914,Data!G$23:G$2914) -> 42567840 | E85: -1316 | F85: 2000 | G85: 994 | H85: 84
A86: 1014 | B86: 5 | C86: 43076812 | D86: =LOOKUP(A86,Data!B$23:B$2914,Data!G$23:G$2914) -> 43077600 | E86: -788 | F86: 2000 | G86: 1006 | H86: 85
A87: 1026 | B87: 6 | C87: 43587100 | D87: =LOOKUP(A87,Data!B$23:B$2914,Data!G$23:G$2914) -> 43587360 | E87: -260 | F87: 2000 | G87: 1018 | H87: 86
A88: 1038 | B88: 7 | C88: 44097388 | D88: =LOOKUP(A88,Data!B$23:B$2914,Data!G$23:G$2914) -> 44098560 | E88: -1172 | F88: 2000 | G88: 1030 | H88: 87
A89: 1050 | B89: 8 | C89: 44607676 | D89: =LOOKUP(A89,Data!B$23:B$2914,Data!G$23:G$2914) -> 44608320 | E89: -644 | F89: 2000 | G89: 1042 | H89: 88
A90: 1062 | B90: 1 | C90: 45117964 | D90: =LOOKUP(A90,Data!B$23:B$2914,Data!G$23:G$2914) -> 45119520 | E90: -1556 | F90: 2000 | G90: 1054 | H90: 89
A91: 1074 | B91: 2 | C91: 45628252 | D91: =LOOKUP(A91,Data!B$23:B$2914,Data!G$23:G$2914) -> 45629280 | E91: -1028 | F91: 2000 | G91: 1066 | H91: 90
A92: 1086 | B92: 3 | C92: 46138540 | D92: =LOOKUP(A92,Data!B$23:B$2914,Data!G$23:G$2914) -> 46139040 | E92: -500 | F92: 2000 | G92: 1078 | H92: 91
A93: 1098 | B93: 4 | C93: 46648828 | D93: =LOOKUP(A93,Data!B$23:B$2914,Data!G$23:G$2914) -> 46650240 | E93: -1412 | F93: 2000 | G93: 1090 | H93: 92
A94: 1110 | B94: 5 | C94: 47159116 | D94: =LOOKUP(A94,Data!B$23:B$2914,Data!G$23:G$2914) -> 47160000 | E94: -884 | F94: 2000 | G94: 1102 | H94: 93
A95: 1122 | B95: 6 | C95: 47669404 | D95: =LOOKUP(A95,Data!B$23:B$2914,Data!G$23:G$2914) -> 47669760 | E95: -356 | F95: 2000 | G95: 1114 | H95: 94
A96: 1134 | B96: 7 | C96: 48179692 | D96: =LOOKUP(A96,Data!B$23:B$2914,Data!G$23:G$2914) -> 48180960 | E96: -1268 | F96: 2000 | G96: 1126 | H96: 95
A97: 1146 | B97: 8 | C97: 48689980 | D97: =LOOKUP(A97,Data!B$23:B$2914,Data!G$23:G$2914) -> 48690720 | E97: -740 | F97: 2000 | G97: 1138 | H97: 96
A98: 1158 | B98: 1 | C98: 49200268 | D98: =LOOKUP(A98,Data!B$23:B$2914,Data!G$23:G$2914) -> 49201920 | E98: -1652 | F98: 2000 | G98: 1150 | H98: 97
A99: 1170 | B99: 2 | C99: 49710556 | D99: =LOOKUP(A99,Data!B$23:B$2914,Data!G$23:G$2914) -> 49711680 | E99: -1124 | F99: 2000 | G99: 1162 | H99: 98
A100: 1182 | B100: 3 | C100: 50220844 | D100: =LOOKUP(A100,Data!B$23:B$2914,Data!G$23:G$2914) -> 50221440 | E100: -596 | F100: 2000 | G100: 1174 | H100: 99
A101: 1194 | B101: 4 | C101: 50731132 | D101: =LOOKUP(A101,Data!B$23:B$2914,Data!G$23:G$2914) -> 50732640 | E101: -1508 | F101: 2000 | G101: 1186 | H101: 100
A102: 1206 | B102: 5 | C102: 51241420 | D102: =LOOKUP(A102,Data!B$23:B$2914,Data!G$23:G$2914) -> 51242400 | E102: -980 | F102: 2000 | G102: 1198 | H102: 101
A103: 1218 | B103: 6 | C103: 51751708 | D103: =LOOKUP(A103,Data!B$23:B$2914,Data!G$23:G$2914) -> 51752160 | E103: -452 | F103: 2000 | G103: 1210 | H103: 102
A104: 1230 | B104: 7 | C104: 52261996 | D104: =LOOKUP(A104,Data!B$23:B$2914,Data!G$23:G$2914) -> 52263360 | E104: -1364 | F104: 2000 | G104: 1222 | H104: 103
A105: 1242 | B105: 8 | C105: 52772284 | D105: =LOOKUP(A105,Data!B$23:B$2914,Data!G$23:G$2914) -> 52773120 | E105: -836 | F105: 2000 | G105: 1234 | H105: 104
A106: 1254 | B106: 1 | C106: 53282572 | D106: =LOOKUP(A106,Data!B$23:B$2914,Data!G$23:G$2914) -> 53284320 | E106: -1748 | F106: 2000 | G106: 1246 | H106: 105
A107: 1266 | B107: 2 | C107: 53792860 | D107: =LOOKUP(A107,Data!B$23:B$2914,Data!G$23:G$2914) -> 53794080 | E107: -1220 | F107: 2000 | G107: 1258 | H107: 106
A108: 1278 | B108: 3 | C108: 54303148 | D108: =LOOKUP(A108,Data!B$23:B$2914,Data!G$23:G$2914) -> 54303840 | E108: -692 | F108: 2000 | G108: 1270 | H108: 107
A109: 1290 | B109: 4 | C109: 54813436 | D109: =LOOKUP(A109,Data!B$23:B$2914,Data!G$23:G$2914) -> 54815040 | E109: -1604 | F109: 2000 | G109: 1282 | H109: 108
A110: 1302 | B110: 5 | C110: 55323724 | D110: =LOOKUP(A110,Data!B$23:B$2914,Data!G$23:G$2914) -> 55324800 | E110: -1076 | F110: 2000 | G110: 1294 | H110: 109
A111: 1314 | B111: 6 | C111: 55834012 | D111: =LOOKUP(A111,Data!B$23:B$2914,Data!G$23:G$2914) -> 55834560 | E111: -548 | F111: 2000 | G111: 1306 | H111: 110
A112: 1326 | B112: 7 | C112: 56344300 | D112: =LOOKUP(A112,Data!B$23:B$2914,Data!G$23:G$2914) -> 56345760 | E112: -1460 | F112: 2000 | G112: 1318 | H112: 111
A113: 1338 | B113: 8 | C113: 56854588 | D113: =LOOKUP(A113,Data!B$23:B$2914,Data!G$23:G$2914) -> 56855520 | E113: -932 | F113: 2000 | G113: 1330 | H113: 112
A114: 1350 | B114: 1 | C114: 57364876 | D114: =LOOKUP(A114,Data!B$23:B$2914,Data!G$23:G$2914) -> 57366720 | E114: -1844 | F114: 2000 | G114: 1342 | H114: 113
A115: 1362 | B115: 2 | C115: 57875164 | D115: =LOOKUP(A115,Data!B$23:B$2914,Data!G$23:G$2914) -> 57876480 | E115: -1316 | F115: 2000 | G115: 1354 | H115: 114
A116: 1374 | B116: 3 | C116: 58385452 | D116: =LOOKUP(A116,Data!B$23:B$2914,Data!G$23:G$2914) -> 58386240 | E116: -788 | F116: 2000 | G116: 1366 | H116: 115
A117: 1386 | B117: 4 | C117: 58895740 | D117: =LOOKUP(A117,Data!B$23:B$2914,Data!G$23:G$2914) -> 58897440 | E117: -1700 | F117: 2000 | G117: 1378 | H117: 116
A118: 1398 | B118: 5 | C118: 59406028 | D118: =LOOKUP(A118,Data!B$23:B$2914,Data!G$23:G$2914) -> 59407200 | E118: -1172 | F118: 2000 | G118: 1390 | H118: 117
A119: 1410 | B119: 6 | C119: 59916316 | D119: =LOOKUP(A119,Data!B$23:B$2914,Data!G$23:G$2914) -> 59916960 | E119: -644 | F119: 2000 | G119: 1402 | H119: 118
A120: 1422 | B120: 7 | C120: 60426604 | D120: =LOOKUP(A120,Data!B$23:B$2914,Data!G$23:G$2914) -> 60428160 | E120: -1556 | F120: 2000 | G120: 1414 | H120: 119
A121: 1434 | B121: 8 | C121: 60936892 | D121: =LOOKUP(A121,Data!B$23:B$2914,Data!G$23:G$2914) -> 60937920 | E121: -1028 | F121: 2000 | G121: 1426 | H121: 120
A122: 1446 | B122: 1 | C122: 61447180 | D122: =LOOKUP(A122,Data!B$23:B$2914,Data!G$23:G$2914) -> 61447680 | E122: -500 | F122: 2000 | G122: 1438 | H122: 121
A123: 1458 | B123: 2 | C123: 61957468 | D123: =LOOKUP(A123,Data!B$23:B$2914,Data!G$23:G$2914) -> 61957440 | E123: 28 | F123: 2000 | G123: 1450 | H123: 122
A124: 1470 | B124: 3 | C124: 62467756 | D124: =LOOKUP(A124,Data!B$23:B$2914,Data!G$23:G$2914) -> 62467200 | E124: 556 | F124: 2000 | G124: 1462 | H124: 123
A125: 1482 | B125: 4 | C125: 62978044 | D125: =LOOKUP(A125,Data!B$23:B$2914,Data!G$23:G$2914) -> 62978400 | E125: -356 | F125: 2000 | G125: 1474 | H125: 124
A126: 1494 | B126: 5 | C126: 63488332 | D126: =LOOKUP(A126,Data!B$23:B$2914,Data!G$23:G$2914) -> 63488160 | E126: 172 | F126: 2000 | G126: 1486 | H126: 125
A127: 1506 | B127: 6 | C127: 63998620 | D127: =LOOKUP(A127,Data!B$23:B$2914,Data!G$23:G$2914) -> 63997920 | E127: 700 | F127: 2000 | G127: 1498 | H127: 126
A128: 1518 | B128: 7 | C128: 64508908 | D128: =LOOKUP(A128,Data!B$23:B$2914,Data!G$23:G$2914) -> 64509120 | E128: -212 | F128: 2000 | G128: 1510 | H128: 127
A129: 1530 | B129: 8 | C129: 65019196 | D129: =LOOKUP(A129,Data!B$23:B$2914,Data!G$23:G$2914) -> 65018880 | E129: 316 | F129: 2000 | G129: 1522 | H129: 128
A130: 1542 | B130: 1 | C130: =(A130-1)*PPM -> 65529484 | D130: =LOOKUP(A130,Data!B$23:B$2914,Data!G$23:G$2914) -> 65530080 | E130: =C130-D130 -> -596 | F130: 2000 | G130: =A130-StartMonth+1 -> 1534 | H130: 129
A131: =A130+12 -> 1554 | B131: =MOD(B130,8)+1 -> 2 | C131: 66039772 | D131: =LOOKUP(A131,Data!B$23:B$2914,Data!G$23:G$2914) -> 66039840 | E131: -68 | F131: =F130 -> 2000 | G131: 1546 | H131: =H130+1 -> 130
A132: 1566 | B132: 3 | C132: 66550060 | D132: =LOOKUP(A132,Data!B$23:B$2914,Data!G$23:G$2914) -> 66549600 | E132: 460 | F132: 2000 | G132: 1558 | H132: 131
A133: 1578 | B133: 4 | C133: 67060348 | D133: =LOOKUP(A133,Data!B$23:B$2914,Data!G$23:G$2914) -> 67060800 | E133: -452 | F133: 2000 | G133: 1570 | H133: 132
A134: 1590 | B134: 5 | C134: 67570636 | D134: =LOOKUP(A134,Data!B$23:B$2914,Data!G$23:G$2914) -> 67570560 | E134: 76 | F134: 2000 | G134: 1582 | H134: 133
A135: 1602 | B135: 6 | C135: 68080924 | D135: =LOOKUP(A135,Data!B$23:B$2914,Data!G$23:G$2914) -> 68080320 | E135: 604 | F135: 2000 | G135: 1594 | H135: 134
A136: 1614 | B136: 7 | C136: 68591212 | D136: =LOOKUP(A136,Data!B$23:B$2914,Data!G$23:G$2914) -> 68591520 | E136: -308 | F136: 2000 | G136: 1606 | H136: 135
A137: 1626 | B137: 8 | C137: 69101500 | D137: =LOOKUP(A137,Data!B$23:B$2914,Data!G$23:G$2914) -> 69101280 | E137: 220 | F137: 2000 | G137: 1618 | H137: 136
A138: 1638 | B138: 1 | C138: 69611788 | D138: =LOOKUP(A138,Data!B$23:B$2914,Data!G$23:G$2914) -> 69612480 | E138: -692 | F138: 2000 | G138: 1630 | H138: 137
A139: 1650 | B139: 2 | C139: 70122076 | D139: =LOOKUP(A139,Data!B$23:B$2914,Data!G$23:G$2914) -> 70122240 | E139: -164 | F139: 2000 | G139: 1642 | H139: 138
A140: 1662 | B140: 3 | C140: 70632364 | D140: =LOOKUP(A140,Data!B$23:B$2914,Data!G$23:G$2914) -> 70632000 | E140: 364 | F140: 2000 | G140: 1654 | H140: 139
A141: 1674 | B141: 4 | C141: 71142652 | D141: =LOOKUP(A141,Data!B$23:B$2914,Data!G$23:G$2914) -> 71143200 | E141: -548 | F141: 2000 | G141: 1666 | H141: 140
A142: 1686 | B142: 5 | C142: 71652940 | D142: =LOOKUP(A142,Data!B$23:B$2914,Data!G$23:G$2914) -> 71652960 | E142: -20 | F142: 2000 | G142: 1678 | H142: 141
A143: 1698 | B143: 6 | C143: 72163228 | D143: =LOOKUP(A143,Data!B$23:B$2914,Data!G$23:G$2914) -> 72162720 | E143: 508 | F143: 2000 | G143: 1690 | H143: 142
A144: 1710 | B144: 7 | C144: 72673516 | D144: =LOOKUP(A144,Data!B$23:B$2914,Data!G$23:G$2914) -> 72673920 | E144: -404 | F144: 2000 | G144: 1702 | H144: 143
A145: 1722 | B145: 8 | C145: 73183804 | D145: =LOOKUP(A145,Data!B$23:B$2914,Data!G$23:G$2914) -> 73183680 | E145: 124 | F145: 2000 | G145: 1714 | H145: 144
A146: 1734 | B146: 1 | C146: 73694092 | D146: =LOOKUP(A146,Data!B$23:B$2914,Data!G$23:G$2914) -> 73694880 | E146: -788 | F146: 2000 | G146: 1726 | H146: 145
A147: 1746 | B147: 2 | C147: 74204380 | D147: =LOOKUP(A147,Data!B$23:B$2914,Data!G$23:G$2914) -> 74204640 | E147: -260 | F147: 2000 | G147: 1738 | H147: 146
A148: 1758 | B148: 3 | C148: 74714668 | D148: =LOOKUP(A148,Data!B$23:B$2914,Data!G$23:G$2914) -> 74714400 | E148: 268 | F148: 2000 | G148: 1750 | H148: 147
A149: 1770 | B149: 4 | C149: 75224956 | D149: =LOOKUP(A149,Data!B$23:B$2914,Data!G$23:G$2914) -> 75225600 | E149: -644 | F149: 2000 | G149: 1762 | H149: 148
A150: 1782 | B150: 5 | C150: 75735244 | D150: =LOOKUP(A150,Data!B$23:B$2914,Data!G$23:G$2914) -> 75735360 | E150: -116 | F150: 2000 | G150: 1774 | H150: 149
A151: 1794 | B151: 6 | C151: 76245532 | D151: =LOOKUP(A151,Data!B$23:B$2914,Data!G$23:G$2914) -> 76245120 | E151: 412 | F151: 2000 | G151: 1786 | H151: 150
A152: 1806 | B152: 7 | C152: 76755820 | D152: =LOOKUP(A152,Data!B$23:B$2914,Data!G$23:G$2914) -> 76756320 | E152: -500 | F152: 2000 | G152: 1798 | H152: 151
A153: 1818 | B153: 8 | C153: 77266108 | D153: =LOOKUP(A153,Data!B$23:B$2914,Data!G$23:G$2914) -> 77266080 | E153: 28 | F153: 2000 | G153: 1810 | H153: 152
A154: 1830 | B154: 1 | C154: 77776396 | D154: =LOOKUP(A154,Data!B$23:B$2914,Data!G$23:G$2914) -> 77777280 | E154: -884 | F154: 2000 | G154: 1822 | H154: 153
A155: 1842 | B155: 2 | C155: 78286684 | D155: =LOOKUP(A155,Data!B$23:B$2914,Data!G$23:G$2914) -> 78287040 | E155: -356 | F155: 2000 | G155: 1834 | H155: 154
A156: 1854 | B156: 3 | C156: 78796972 | D156: =LOOKUP(A156,Data!B$23:B$2914,Data!G$23:G$2914) -> 78796800 | E156: 172 | F156: 2000 | G156: 1846 | H156: 155
A157: 1866 | B157: 4 | C157: 79307260 | D157: =LOOKUP(A157,Data!B$23:B$2914,Data!G$23:G$2914) -> 79308000 | E157: -740 | F157: 2000 | G157: 1858 | H157: 156
A158: 1878 | B158: 5 | C158: 79817548 | D158: =LOOKUP(A158,Data!B$23:B$2914,Data!G$23:G$2914) -> 79817760 | E158: -212 | F158: 2000 | G158: 1870 | H158: 157
A159: 1890 | B159: 6 | C159: 80327836 | D159: =LOOKUP(A159,Data!B$23:B$2914,Data!G$23:G$2914) -> 80327520 | E159: 316 | F159: 2000 | G159: 1882 | H159: 158
A160: 1902 | B160: 7 | C160: 80838124 | D160: =LOOKUP(A160,Data!B$23:B$2914,Data!G$23:G$2914) -> 80838720 | E160: -596 | F160: 2000 | G160: 1894 | H160: 159
A161: 1914 | B161: 8 | C161: 81348412 | D161: =LOOKUP(A161,Data!B$23:B$2914,Data!G$23:G$2914) -> 81348480 | E161: -68 | F161: 2000 | G161: 1906 | H161: 160
A162: 1926 | B162: 1 | C162: 81858700 | D162: =LOOKUP(A162,Data!B$23:B$2914,Data!G$23:G$2914) -> 81859680 | E162: -980 | F162: 2000 | G162: 1918 | H162: 161
A163: 1938 | B163: 2 | C163: 82368988 | D163: =LOOKUP(A163,Data!B$23:B$2914,Data!G$23:G$2914) -> 82369440 | E163: -452 | F163: 2000 | G163: 1930 | H163: 162
A164: 1950 | B164: 3 | C164: 82879276 | D164: =LOOKUP(A164,Data!B$23:B$2914,Data!G$23:G$2914) -> 82879200 | E164: 76 | F164: 2000 | G164: 1942 | H164: 163
A165: 1962 | B165: 4 | C165: 83389564 | D165: =LOOKUP(A165,Data!B$23:B$2914,Data!G$23:G$2914) -> 83390400 | E165: -836 | F165: 2000 | G165: 1954 | H165: 164
A166: 1974 | B166: 5 | C166: 83899852 | D166: =LOOKUP(A166,Data!B$23:B$2914,Data!G$23:G$2914) -> 83900160 | E166: -308 | F166: 2000 | G166: 1966 | H166: 165
A167: 1986 | B167: 6 | C167: 84410140 | D167: =LOOKUP(A167,Data!B$23:B$2914,Data!G$23:G$2914) -> 84409920 | E167: 220 | F167: 2000 | G167: 1978 | H167: 166
A168: 1998 | B168: 7 | C168: 84920428 | D168: =LOOKUP(A168,Data!B$23:B$2914,Data!G$23:G$2914) -> 84921120 | E168: -692 | F168: 2000 | G168: 1990 | H168: 167
A169: 2010 | B169: 8 | C169: 85430716 | D169: =LOOKUP(A169,Data!B$23:B$2914,Data!G$23:G$2914) -> 85430880 | E169: -164 | F169: 2000 | G169: 2002 | H169: 168
A170: 2022 | B170: 1 | C170: 85941004 | D170: =LOOKUP(A170,Data!B$23:B$2914,Data!G$23:G$2914) -> 85942080 | E170: -1076 | F170: 2000 | G170: 2014 | H170: 169
A171: 2034 | B171: 2 | C171: 86451292 | D171: =LOOKUP(A171,Data!B$23:B$2914,Data!G$23:G$2914) -> 86451840 | E171: -548 | F171: 2000 | G171: 2026 | H171: 170
A172: 2046 | B172: 3 | C172: 86961580 | D172: =LOOKUP(A172,Data!B$23:B$2914,Data!G$23:G$2914) -> 86961600 | E172: -20 | F172: 2000 | G172: 2038 | H172: 171
A173: 2058 | B173: 4 | C173: 87471868 | D173: =LOOKUP(A173,Data!B$23:B$2914,Data!G$23:G$2914) -> 87472800 | E173: -932 | F173: 2000 | G173: 2050 | H173: 172
A174: 2070 | B174: 5 | C174: 87982156 | D174: =LOOKUP(A174,Data!B$23:B$2914,Data!G$23:G$2914) -> 87982560 | E174: -404 | F174: 2000 | G174: 2062 | H174: 173
A175: 2082 | B175: 6 | C175: 88492444 | D175: =LOOKUP(A175,Data!B$23:B$2914,Data!G$23:G$2914) -> 88492320 | E175: 124 | F175: 2000 | G175: 2074 | H175: 174
A176: 2094 | B176: 7 | C176: 89002732 | D176: =LOOKUP(A176,Data!B$23:B$2914,Data!G$23:G$2914) -> 89003520 | E176: -788 | F176: 2000 | G176: 2086 | H176: 175
A177: 2106 | B177: 8 | C177: 89513020 | D177: =LOOKUP(A177,Data!B$23:B$2914,Data!G$23:G$2914) -> 89513280 | E177: -260 | F177: 2000 | G177: 2098 | H177: 176
A178: 2118 | B178: 1 | C178: 90023308 | D178: =LOOKUP(A178,Data!B$23:B$2914,Data!G$23:G$2914) -> 90024480 | E178: -1172 | F178: 2000 | G178: 2110 | H178: 177
A179: 2130 | B179: 2 | C179: 90533596 | D179: =LOOKUP(A179,Data!B$23:B$2914,Data!G$23:G$2914) -> 90534240 | E179: -644 | F179: 2000 | G179: 2122 | H179: 178
A180: 2142 | B180: 3 | C180: 91043884 | D180: =LOOKUP(A180,Data!B$23:B$2914,Data!G$23:G$2914) -> 91044000 | E180: -116 | F180: 2000 | G180: 2134 | H180: 179
A181: 2154 | B181: 4 | C181: 91554172 | D181: =LOOKUP(A181,Data!B$23:B$2914,Data!G$23:G$2914) -> 91555200 | E181: -1028 | F181: 2000 | G181: 2146 | H181: 180
A182: 2166 | B182: 5 | C182: 92064460 | D182: =LOOKUP(A182,Data!B$23:B$2914,Data!G$23:G$2914) -> 92064960 | E182: -500 | F182: 2000 | G182: 2158 | H182: 181
A183: 2178 | B183: 6 | C183: 92574748 | D183: =LOOKUP(A183,Data!B$23:B$2914,Data!G$23:G$2914) -> 92574720 | E183: 28 | F183: 2000 | G183: 2170 | H183: 182
A184: 2190 | B184: 7 | C184: 93085036 | D184: =LOOKUP(A184,Data!B$23:B$2914,Data!G$23:G$2914) -> 93085920 | E184: -884 | F184: 2000 | G184: 2182 | H184: 183
A185: 2202 | B185: 8 | C185: 93595324 | D185: =LOOKUP(A185,Data!B$23:B$2914,Data!G$23:G$2914) -> 93595680 | E185: -356 | F185: 2000 | G185: 2194 | H185: 184
A186: 2214 | B186: 1 | C186: 94105612 | D186: =LOOKUP(A186,Data!B$23:B$2914,Data!G$23:G$2914) -> 94106880 | E186: -1268 | F186: 2000 | G186: 2206 | H186: 185
A187: 2226 | B187: 2 | C187: 94615900 | D187: =LOOKUP(A187,Data!B$23:B$2914,Data!G$23:G$2914) -> 94616640 | E187: -740 | F187: 2000 | G187: 2218 | H187: 186
A188: 2238 | B188: 3 | C188: 95126188 | D188: =LOOKUP(A188,Data!B$23:B$2914,Data!G$23:G$2914) -> 95126400 | E188: -212 | F188: 2000 | G188: 2230 | H188: 187
A189: 2250 | B189: 4 | C189: 95636476 | D189: =LOOKUP(A189,Data!B$23:B$2914,Data!G$23:G$2914) -> 95637600 | E189: -1124 | F189: 2000 | G189: 2242 | H189: 188
A190: 2262 | B190: 5 | C190: 96146764 | D190: =LOOKUP(A190,Data!B$23:B$2914,Data!G$23:G$2914) -> 96147360 | E190: -596 | F190: 2000 | G190: 2254 | H190: 189
A191: 2274 | B191: 6 | C191: 96657052 | D191: =LOOKUP(A191,Data!B$23:B$2914,Data!G$23:G$2914) -> 96657120 | E191: -68 | F191: 2000 | G191: 2266 | H191: 190
A192: 2286 | B192: 7 | C192: 97167340 | D192: =LOOKUP(A192,Data!B$23:B$2914,Data!G$23:G$2914) -> 97168320 | E192: -980 | F192: 2000 | G192: 2278 | H192: 191
A193: 2298 | B193: 8 | C193: 97677628 | D193: =LOOKUP(A193,Data!B$23:B$2914,Data!G$23:G$2914) -> 97678080 | E193: -452 | F193: 2000 | G193: 2290 | H193: 192
A194: 2310 | B194: 1 | C194: =(A194-1)*PPM -> 98187916 | D194: =LOOKUP(A194,Data!B$23:B$2914,Data!G$23:G$2914) -> 98189280 | E194: =C194-D194 -> -1364 | F194: 2000 | G194: =A194-StartMonth+1 -> 2302 | H194: 193
A195: =A194+12 -> 2322 | B195: =MOD(B194,8)+1 -> 2 | C195: 98698204 | D195: =LOOKUP(A195,Data!B$23:B$2914,Data!G$23:G$2914) -> 98699040 | E195: -836 | F195: =F194 -> 2000 | G195: 2314 | H195: =H194+1 -> 194
A196: 2334 | B196: 3 | C196: 99208492 | D196: =LOOKUP(A196,Data!B$23:B$2914,Data!G$23:G$2914) -> 99208800 | E196: -308 | F196: 2000 | G196: 2326 | H196: 195
A197: 2346 | B197: 4 | C197: 99718780 | D197: =LOOKUP(A197,Data!B$23:B$2914,Data!G$23:G$2914) -> 99720000 | E197: -1220 | F197: 2000 | G197: 2338 | H197: 196
A198: 2358 | B198: 5 | C198: 100229068 | D198: =LOOKUP(A198,Data!B$23:B$2914,Data!G$23:G$2914) -> 100229760 | E198: -692 | F198: 2000 | G198: 2350 | H198: 197
A199: 2370 | B199: 6 | C199: 100739356 | D199: =LOOKUP(A199,Data!B$23:B$2914,Data!G$23:G$2914) -> 100739520 | E199: -164 | F199: 2000 | G199: 2362 | H199: 198
A200: 2382 | B200: 7 | C200: 101249644 | D200: =LOOKUP(A200,Data!B$23:B$2914,Data!G$23:G$2914) -> 101250720 | E200: -1076 | F200: 2000 | G200: 2374 | H200: 199
... 42 more rows

Sheet Zoom
A1: 0 | B1: = Current Zoom Level
A2: Level | B2: Months | C2: MajorTick | D2: MinorTick | E2: Shift | F2: Connect | G2: Years | H2: YearsMajor | I2: YearsMinor
A3: =ROW()-3 -> 0 | B3: =2*MPC -> 2880 | C3: 180 | D3: 36 | F3: FALSE | G3: =B3/12 -> 240 | H3: 8 | I3: 2
A4: 1 | B4: =B3/2 -> 1440 | C4: =2*48 -> 96 | D4: 12 | E4: =B5 -> 720 | F4: FALSE | G4: =B4/12 -> 120 | H4: 8 | I4: 2
A5: 2 | B5: =B4/2 -> 720 | C5: 48 | D5: 12 | E5: 360 | F5: FALSE | G5: 60 | H5: 4 | I5: 1
A6: 3 | B6: =B5/2 -> 360 | C6: 24 | D6: 6 | E6: 180 | F6: FALSE | G6: 30 | H6: 2 | I6: 1
A7: 4 | B7: =B6/2 -> 180 | C7: 12 | D7: 3 | E7: 96 | F7: TRUE | G7: 15 | H7: 1 | I7: 1
A8: 5 | B8: 96 | C8: 6 | D8: 1 | E8: 48 | F8: TRUE | G8: 8 | H8: 1 | I8: 1
A9: 6 | B9: =B8/2 -> 48 | C9: 3 | D9: 1 | E9: 24 | F9: TRUE | G9: 4 | H9: 1 | I9: 1
A10: 7 | B10: =B9/2 -> 24 | C10: 2 | D10: 1 | E10: 12 | F10: TRUE | G10: 2 | H10: 1 | I10: 1
A11: 8 | B11: =B10/2 -> 12 | C11: 1 | D11: 1 | E11: 12 | F11: TRUE | G11: 1 | H11: 1 | I11: 1

Sheet Labels
A1: Lunar Year | B1: Hours | C1: ="Span "&B2-B28&"h" -> Span 78h
A2: 241 | B2: 33
A3: =A2 -> 241 | B3: =B2-3 -> 30
A4: =A3 -> 241 | B4: =B3-3 -> 27
A5: =A4 -> 241 | B5: 24
A6: =A5 -> 241 | B6: 21
A7: 241 | B7: 18
A8: 241 | B8: 15
A9: 241 | B9: 12
A10: 241 | B10: 9
A11: 241 | B11: 6
A12: 241 | B12: 3
A13: 241 | B13: 0
A14: 241 | B14: -3
A15: =A14 -> 241 | B15: =B14-3 -> -6
A16: 241 | B16: -9
A17: 241 | B17: -12
A18: 241 | B18: -15
A19: 241 | B19: -18
A20: 241 | B20: -21
A21: 241 | B21: -24
A22: 241 | B22: -27
A23: 241 | B23: -30
A24: 241 | B24: -33
A25: 241 | B25: -36
A26: 241 | B26: -39
A27: 241 | B27: -42
A28: 241 | B28: -45
